Workbook

Sheet Sample Size Calculator
A1: Sample Size Calculator for SACE | N1: Accuracy | O1: Confidence | P1: Statistic
K2: 0.05 | L2: 0.95 | M2: 0.5 | N2: 0.05 | O2: 0.95 | P2: 0.5
A3: Guidance (tables below)
A5: Councils are required to choose a sufficiently large sample size so that estimates from individual questions have a 95% Confidence Interval of no more than +/- 5%
A6: In order to calculate the number of questionnaires you need to send out, you will need to enter the number of eligible carers and your expected response rate into the table 1 below in the red cells. You can simply overwrite the example values already in there.
A8: Once you have entered your data in the red cells, the number of completed returned questionnaires you need to gather will be calculated in the green cells and the sample size needed to achieve this (based on your anticipated response rate) will appear in the blue cells. This is the minimum total number of questionnaires you need to send out to your carers.
A10: Oversampling to Improve Precision
A11: In table 2, you can try out different scenarios if you want to survey more carers than needed to satisfy the minimum requirement which will increase the level of accuracy you will achieve, or in other words, reduce the margin of error. Simply enter the number of questionnaires you want to send out in the blue cell and the margin of error you will achieve will appear in the purple cell. For example, and again using the figures which are already in the tables, you can see that increasing the sample size from the minimum requirement of 696 to 900 will improve the level of accuracy from +/- 5.0% to +/- 4.1%.
A13: If you do not wish to oversample then simply ignore table 2 and use the sample size given in the blue cells in table 1. If you want to sample based on selected every nth service user on your records, then the sampling fraction you need to use will appear in the orange cell which is then used in the sheet entitled "Selecting the Sample" to show you which service users to select.
A15: Table 1: Fulfilling Minimum Requirements
A16: The number of carers you are drawing your sample from (also called the "eligible population") | E16: Your anticipated response rate based on previous surveys (%) | H16: Number of returned questionnaires you need to meet +/- 5% requirement* | K16: Sample Size - Actual number of questionnaires you need to send out based on anticipated response rate | M16: Margin of Error | O16: Sampling interval needed if you want to select every nth carer
A17: 1000 | E17: 0.4 | H17: =CEILING(((NORMINV(($O$2+(1-$O$2)/2),0,1))^2*$P$2*A17*(1-$P$2))/(($N$2^2*A17)+((NORMINV(($O$2+(1-$O$2)/2),0,1))^2*$P$2*(1-$P$2))),1) -> 278 | K17: =INT(H17/E17)+1 -> 696 | M17: =(NORMINV(($O$2+(1-$O$2)/2),0,1))*SQRT((($P$2*(1-$P$2))/H17)*((A17-H17)/A17)) -> 0.04994181208 | O17: ="One in every "&ROUND(A17/K17,2)&" cases" -> One in every 1.44 cases
A18: =IF(K17>A17,"Your required size is larger than your eligible population. Please contact the NHS England via socialcare.statistics@nhs.net to discuss and forward a screenshot of this table","") -> 
A19: Table 2: Surveying more than the Minimum Requirement
A20: The number of carers you are drawing your sample from (also called the "eligible population") | E20: Your anticipated response rate based on previous surveys (%) | H20: Number of returned questionnaires you need to meet +/- 5% requirement* | K20: Sample Size - Actual number of questionnaires you need to send out based on anticipated response rate | M20: Margin of Error | O20: Sampling interval needed if you want to select every nth carer
A21: =A17 -> 1000 | E21: =E17 -> 0.4 | H21: =INT(K21*E21) -> 360 | K21: 900 | M21: =(NORMINV(($O$2+(1-$O$2)/2),0,1))*SQRT((($P$2*(1-$P$2))/H21)*((A21-H21)/A21)) -> 0.04131966882 | O21: ="One in every "&ROUND(A21/K21,2)&" cases" -> One in every 1.11 cases
A22: =IF(K21>A21,"You have entered a figure larger than the eligible population. Please enter a smaller figure","") -> 

Sheet Selecting the Sample-minimum
A1: Selecting Your Sample - Minimum Requirements
A3: This sheet is automatically populated based on the information you have already entered in the "Sample Size Calculator". The carers you should select are given in the green table below
A5: The sheet is not protected so councils can change the font size, set print ranges etc but it should not be necessary to change any of the text, numbers or formulae on this sheet.
A7: The number of carers you are drawing your sample from (also called the "eligible population") | B7: ='Sample Size Calculator'!A17 -> 1000
A8: Sample Size - Actual number of questionnaires you need to send out | B8: ='Sample Size Calculator'!K17 -> 696
A9: Sampling interval needed if you want to select every nth carer | B9: =ROUND('Sample Size Calculator'!A17/'Sample Size Calculator'!K17,2) -> 1.44
A10: Random Start | B10: =CEILING(B$11*B9,1) -> 2
B11: 0.8936035314 | D11: =B11*B9 -> 1.286789085
B13: The record that should be selected from your list of eligible carers
B14: Elig Pop Number | C14: Flag
B15: 1 | C15: =IF(ISNUMBER(B15),IF(ROUND($B$10,0)=B15,1,IF(B15>ROUND($B$10,1),IF(B15=INT($B$10+SUM($C$14:C14)*$B$9),1,""),"")),"") ->  | HG15: 1 | HL15: 1
B16: =IF(SUM(C$15:C15)>=$B$8," ",$HG16) -> 2 | C16: =IF(ISNUMBER(B16),IF(ROUND($B$10,0)=B16,1,IF(B16>ROUND($B$10,1),IF(B16=INT($B$10+SUM($C$14:C15)*$B$9),1,""),"")),"") -> 1 | HG16: =HG15+1 -> 2 | HL16: =HL15+1 -> 2
B17: =IF(SUM(C$15:C16)>=$B$8," ",$HG17) -> 3 | C17: =IF(ISNUMBER(B17),IF(ROUND($B$10,0)=B17,1,IF(B17>ROUND($B$10,1),IF(B17=INT($B$10+SUM($C$14:C16)*$B$9),1,""),"")),"") -> 1 | HG17: 3 | HL17: =HL16+1 -> 3
B18: =IF(SUM(C$15:C17)>=$B$8," ",$HG18) -> 4 | C18: =IF(ISNUMBER(B18),IF(ROUND($B$10,0)=B18,1,IF(B18>ROUND($B$10,1),IF(B18=INT($B$10+SUM($C$14:C17)*$B$9),1,""),"")),"") -> 1 | HG18: 4 | HL18: 4
B19: =IF(SUM(C$15:C18)>=$B$8," ",$HG19) -> 5 | C19: =IF(ISNUMBER(B19),IF(ROUND($B$10,0)=B19,1,IF(B19>ROUND($B$10,1),IF(B19=INT($B$10+SUM($C$14:C18)*$B$9),1,""),"")),"") ->  | HG19: 5 | HL19: 5
B20: =IF(SUM(C$15:C19)>=$B$8," ",$HG20) -> 6 | C20: =IF(ISNUMBER(B20),IF(ROUND($B$10,0)=B20,1,IF(B20>ROUND($B$10,1),IF(B20=INT($B$10+SUM($C$14:C19)*$B$9),1,""),"")),"") -> 1 | HG20: 6 | HL20: 6
B21: =IF(SUM(C$15:C20)>=$B$8," ",$HG21) -> 7 | C21: =IF(ISNUMBER(B21),IF(ROUND($B$10,0)=B21,1,IF(B21>ROUND($B$10,1),IF(B21=INT($B$10+SUM($C$14:C20)*$B$9),1,""),"")),"") -> 1 | HG21: 7 | HL21: 7
B22: =IF(SUM(C$15:C21)>=$B$8," ",$HG22) -> 8 | C22: =IF(ISNUMBER(B22),IF(ROUND($B$10,0)=B22,1,IF(B22>ROUND($B$10,1),IF(B22=INT($B$10+SUM($C$14:C21)*$B$9),1,""),"")),"") ->  | HG22: 8 | HL22: 8
B23: =IF(SUM(C$15:C22)>=$B$8," ",$HG23) -> 9 | C23: =IF(ISNUMBER(B23),IF(ROUND($B$10,0)=B23,1,IF(B23>ROUND($B$10,1),IF(B23=INT($B$10+SUM($C$14:C22)*$B$9),1,""),"")),"") -> 1 | HG23: 9 | HL23: 9
B24: =IF(SUM(C$15:C23)>=$B$8," ",$HG24) -> 10 | C24: =IF(ISNUMBER(B24),IF(ROUND($B$10,0)=B24,1,IF(B24>ROUND($B$10,1),IF(B24=INT($B$10+SUM($C$14:C23)*$B$9),1,""),"")),"") -> 1 | HG24: 10 | HL24: 10
B25: =IF(SUM(C$15:C24)>=$B$8," ",$HG25) -> 11 | C25: =IF(ISNUMBER(B25),IF(ROUND($B$10,0)=B25,1,IF(B25>ROUND($B$10,1),IF(B25=INT($B$10+SUM($C$14:C24)*$B$9),1,""),"")),"") ->  | HG25: 11 | HL25: 11
B26: =IF(SUM(C$15:C25)>=$B$8," ",$HG26) -> 12 | C26: =IF(ISNUMBER(B26),IF(ROUND($B$10,0)=B26,1,IF(B26>ROUND($B$10,1),IF(B26=INT($B$10+SUM($C$14:C25)*$B$9),1,""),"")),"") -> 1 | HG26: 12 | HL26: 12
B27: =IF(SUM(C$15:C26)>=$B$8," ",$HG27) -> 13 | C27: =IF(ISNUMBER(B27),IF(ROUND($B$10,0)=B27,1,IF(B27>ROUND($B$10,1),IF(B27=INT($B$10+SUM($C$14:C26)*$B$9),1,""),"")),"") -> 1 | HG27: 13 | HL27: 13
B28: =IF(SUM(C$15:C27)>=$B$8," ",$HG28) -> 14 | C28: =IF(ISNUMBER(B28),IF(ROUND($B$10,0)=B28,1,IF(B28>ROUND($B$10,1),IF(B28=INT($B$10+SUM($C$14:C27)*$B$9),1,""),"")),"") -> 1 | HG28: 14 | HL28: 14
B29: =IF(SUM(C$15:C28)>=$B$8," ",$HG29) -> 15 | C29: =IF(ISNUMBER(B29),IF(ROUND($B$10,0)=B29,1,IF(B29>ROUND($B$10,1),IF(B29=INT($B$10+SUM($C$14:C28)*$B$9),1,""),"")),"") ->  | HG29: 15 | HL29: 15
B30: =IF(SUM(C$15:C29)>=$B$8," ",$HG30) -> 16 | C30: =IF(ISNUMBER(B30),IF(ROUND($B$10,0)=B30,1,IF(B30>ROUND($B$10,1),IF(B30=INT($B$10+SUM($C$14:C29)*$B$9),1,""),"")),"") -> 1 | HG30: 16 | HL30: 16
B31: =IF(SUM(C$15:C30)>=$B$8," ",$HG31) -> 17 | C31: =IF(ISNUMBER(B31),IF(ROUND($B$10,0)=B31,1,IF(B31>ROUND($B$10,1),IF(B31=INT($B$10+SUM($C$14:C30)*$B$9),1,""),"")),"") -> 1 | HG31: 17 | HL31: 17
B32: =IF(SUM(C$15:C31)>=$B$8," ",$HG32) -> 18 | C32: =IF(ISNUMBER(B32),IF(ROUND($B$10,0)=B32,1,IF(B32>ROUND($B$10,1),IF(B32=INT($B$10+SUM($C$14:C31)*$B$9),1,""),"")),"") ->  | HG32: 18 | HL32: 18
B33: =IF(SUM(C$15:C32)>=$B$8," ",$HG33) -> 19 | C33: =IF(ISNUMBER(B33),IF(ROUND($B$10,0)=B33,1,IF(B33>ROUND($B$10,1),IF(B33=INT($B$10+SUM($C$14:C32)*$B$9),1,""),"")),"") -> 1 | HG33: 19 | HL33: 19
B34: =IF(SUM(C$15:C33)>=$B$8," ",$HG34) -> 20 | C34: =IF(ISNUMBER(B34),IF(ROUND($B$10,0)=B34,1,IF(B34>ROUND($B$10,1),IF(B34=INT($B$10+SUM($C$14:C33)*$B$9),1,""),"")),"") -> 1 | HG34: 20 | HL34: 20
B35: =IF(SUM(C$15:C34)>=$B$8," ",$HG35) -> 21 | C35: =IF(ISNUMBER(B35),IF(ROUND($B$10,0)=B35,1,IF(B35>ROUND($B$10,1),IF(B35=INT($B$10+SUM($C$14:C34)*$B$9),1,""),"")),"") ->  | HG35: 21 | HL35: 21
B36: =IF(SUM(C$15:C35)>=$B$8," ",$HG36) -> 22 | C36: =IF(ISNUMBER(B36),IF(ROUND($B$10,0)=B36,1,IF(B36>ROUND($B$10,1),IF(B36=INT($B$10+SUM($C$14:C35)*$B$9),1,""),"")),"") -> 1 | HG36: 22 | HL36: 22
B37: =IF(SUM(C$15:C36)>=$B$8," ",$HG37) -> 23 | C37: =IF(ISNUMBER(B37),IF(ROUND($B$10,0)=B37,1,IF(B37>ROUND($B$10,1),IF(B37=INT($B$10+SUM($C$14:C36)*$B$9),1,""),"")),"") -> 1 | HG37: 23 | HL37: 23
B38: =IF(SUM(C$15:C37)>=$B$8," ",$HG38) -> 24 | C38: =IF(ISNUMBER(B38),IF(ROUND($B$10,0)=B38,1,IF(B38>ROUND($B$10,1),IF(B38=INT($B$10+SUM($C$14:C37)*$B$9),1,""),"")),"") ->  | HG38: 24 | HL38: 24
B39: =IF(SUM(C$15:C38)>=$B$8," ",$HG39) -> 25 | C39: =IF(ISNUMBER(B39),IF(ROUND($B$10,0)=B39,1,IF(B39>ROUND($B$10,1),IF(B39=INT($B$10+SUM($C$14:C38)*$B$9),1,""),"")),"") -> 1 | HG39: 25 | HL39: 25
B40: =IF(SUM(C$15:C39)>=$B$8," ",$HG40) -> 26 | C40: =IF(ISNUMBER(B40),IF(ROUND($B$10,0)=B40,1,IF(B40>ROUND($B$10,1),IF(B40=INT($B$10+SUM($C$14:C39)*$B$9),1,""),"")),"") -> 1 | HG40: 26 | HL40: 26
B41: =IF(SUM(C$15:C40)>=$B$8," ",$HG41) -> 27 | C41: =IF(ISNUMBER(B41),IF(ROUND($B$10,0)=B41,1,IF(B41>ROUND($B$10,1),IF(B41=INT($B$10+SUM($C$14:C40)*$B$9),1,""),"")),"") -> 1 | HG41: 27 | HL41: 27
B42: =IF(SUM(C$15:C41)>=$B$8," ",$HG42) -> 28 | C42: =IF(ISNUMBER(B42),IF(ROUND($B$10,0)=B42,1,IF(B42>ROUND($B$10,1),IF(B42=INT($B$10+SUM($C$14:C41)*$B$9),1,""),"")),"") ->  | HG42: 28 | HL42: 28
B43: =IF(SUM(C$15:C42)>=$B$8," ",$HG43) -> 29 | C43: =IF(ISNUMBER(B43),IF(ROUND($B$10,0)=B43,1,IF(B43>ROUND($B$10,1),IF(B43=INT($B$10+SUM($C$14:C42)*$B$9),1,""),"")),"") -> 1 | HG43: 29 | HL43: 29
B44: =IF(SUM(C$15:C43)>=$B$8," ",$HG44) -> 30 | C44: =IF(ISNUMBER(B44),IF(ROUND($B$10,0)=B44,1,IF(B44>ROUND($B$10,1),IF(B44=INT($B$10+SUM($C$14:C43)*$B$9),1,""),"")),"") -> 1 | HG44: 30 | HL44: 30
B45: =IF(SUM(C$15:C44)>=$B$8," ",$HG45) -> 31 | C45: =IF(ISNUMBER(B45),IF(ROUND($B$10,0)=B45,1,IF(B45>ROUND($B$10,1),IF(B45=INT($B$10+SUM($C$14:C44)*$B$9),1,""),"")),"") ->  | HG45: 31 | HL45: 31
B46: =IF(SUM(C$15:C45)>=$B$8," ",$HG46) -> 32 | C46: =IF(ISNUMBER(B46),IF(ROUND($B$10,0)=B46,1,IF(B46>ROUND($B$10,1),IF(B46=INT($B$10+SUM($C$14:C45)*$B$9),1,""),"")),"") -> 1 | HG46: 32 | HL46: 32
B47: =IF(SUM(C$15:C46)>=$B$8," ",$HG47) -> 33 | C47: =IF(ISNUMBER(B47),IF(ROUND($B$10,0)=B47,1,IF(B47>ROUND($B$10,1),IF(B47=INT($B$10+SUM($C$14:C46)*$B$9),1,""),"")),"") -> 1 | HG47: 33 | HL47: 33
B48: =IF(SUM(C$15:C47)>=$B$8," ",$HG48) -> 34 | C48: =IF(ISNUMBER(B48),IF(ROUND($B$10,0)=B48,1,IF(B48>ROUND($B$10,1),IF(B48=INT($B$10+SUM($C$14:C47)*$B$9),1,""),"")),"") ->  | HG48: 34 | HL48: 34
B49: =IF(SUM(C$15:C48)>=$B$8," ",$HG49) -> 35 | C49: =IF(ISNUMBER(B49),IF(ROUND($B$10,0)=B49,1,IF(B49>ROUND($B$10,1),IF(B49=INT($B$10+SUM($C$14:C48)*$B$9),1,""),"")),"") -> 1 | HG49: 35 | HL49: 35
B50: =IF(SUM(C$15:C49)>=$B$8," ",$HG50) -> 36 | C50: =IF(ISNUMBER(B50),IF(ROUND($B$10,0)=B50,1,IF(B50>ROUND($B$10,1),IF(B50=INT($B$10+SUM($C$14:C49)*$B$9),1,""),"")),"") -> 1 | HG50: 36 | HL50: 36
B51: =IF(SUM(C$15:C50)>=$B$8," ",$HG51) -> 37 | C51: =IF(ISNUMBER(B51),IF(ROUND($B$10,0)=B51,1,IF(B51>ROUND($B$10,1),IF(B51=INT($B$10+SUM($C$14:C50)*$B$9),1,""),"")),"") ->  | HG51: 37 | HL51: 37
B52: =IF(SUM(C$15:C51)>=$B$8," ",$HG52) -> 38 | C52: =IF(ISNUMBER(B52),IF(ROUND($B$10,0)=B52,1,IF(B52>ROUND($B$10,1),IF(B52=INT($B$10+SUM($C$14:C51)*$B$9),1,""),"")),"") -> 1 | HG52: 38 | HL52: 38
B53: =IF(SUM(C$15:C52)>=$B$8," ",$HG53) -> 39 | C53: =IF(ISNUMBER(B53),IF(ROUND($B$10,0)=B53,1,IF(B53>ROUND($B$10,1),IF(B53=INT($B$10+SUM($C$14:C52)*$B$9),1,""),"")),"") -> 1 | HG53: 39 | HL53: 39
B54: =IF(SUM(C$15:C53)>=$B$8," ",$HG54) -> 40 | C54: =IF(ISNUMBER(B54),IF(ROUND($B$10,0)=B54,1,IF(B54>ROUND($B$10,1),IF(B54=INT($B$10+SUM($C$14:C53)*$B$9),1,""),"")),"") -> 1 | HG54: 40 | HL54: 40
B55: =IF(SUM(C$15:C54)>=$B$8," ",$HG55) -> 41 | C55: =IF(ISNUMBER(B55),IF(ROUND($B$10,0)=B55,1,IF(B55>ROUND($B$10,1),IF(B55=INT($B$10+SUM($C$14:C54)*$B$9),1,""),"")),"") ->  | HG55: 41 | HL55: 41
B56: =IF(SUM(C$15:C55)>=$B$8," ",$HG56) -> 42 | C56: =IF(ISNUMBER(B56),IF(ROUND($B$10,0)=B56,1,IF(B56>ROUND($B$10,1),IF(B56=INT($B$10+SUM($C$14:C55)*$B$9),1,""),"")),"") -> 1 | HG56: 42 | HL56: 42
B57: =IF(SUM(C$15:C56)>=$B$8," ",$HG57) -> 43 | C57: =IF(ISNUMBER(B57),IF(ROUND($B$10,0)=B57,1,IF(B57>ROUND($B$10,1),IF(B57=INT($B$10+SUM($C$14:C56)*$B$9),1,""),"")),"") -> 1 | HG57: 43 | HL57: 43
B58: =IF(SUM(C$15:C57)>=$B$8," ",$HG58) -> 44 | C58: =IF(ISNUMBER(B58),IF(ROUND($B$10,0)=B58,1,IF(B58>ROUND($B$10,1),IF(B58=INT($B$10+SUM($C$14:C57)*$B$9),1,""),"")),"") ->  | HG58: 44 | HL58: 44
B59: =IF(SUM(C$15:C58)>=$B$8," ",$HG59) -> 45 | C59: =IF(ISNUMBER(B59),IF(ROUND($B$10,0)=B59,1,IF(B59>ROUND($B$10,1),IF(B59=INT($B$10+SUM($C$14:C58)*$B$9),1,""),"")),"") -> 1 | HG59: 45 | HL59: 45
B60: =IF(SUM(C$15:C59)>=$B$8," ",$HG60) -> 46 | C60: =IF(ISNUMBER(B60),IF(ROUND($B$10,0)=B60,1,IF(B60>ROUND($B$10,1),IF(B60=INT($B$10+SUM($C$14:C59)*$B$9),1,""),"")),"") -> 1 | HG60: 46 | HL60: 46
B61: =IF(SUM(C$15:C60)>=$B$8," ",$HG61) -> 47 | C61: =IF(ISNUMBER(B61),IF(ROUND($B$10,0)=B61,1,IF(B61>ROUND($B$10,1),IF(B61=INT($B$10+SUM($C$14:C60)*$B$9),1,""),"")),"") ->  | HG61: 47 | HL61: 47
B62: =IF(SUM(C$15:C61)>=$B$8," ",$HG62) -> 48 | C62: =IF(ISNUMBER(B62),IF(ROUND($B$10,0)=B62,1,IF(B62>ROUND($B$10,1),IF(B62=INT($B$10+SUM($C$14:C61)*$B$9),1,""),"")),"") -> 1 | HG62: 48 | HL62: 48
B63: =IF(SUM(C$15:C62)>=$B$8," ",$HG63) -> 49 | C63: =IF(ISNUMBER(B63),IF(ROUND($B$10,0)=B63,1,IF(B63>ROUND($B$10,1),IF(B63=INT($B$10+SUM($C$14:C62)*$B$9),1,""),"")),"") -> 1 | HG63: 49 | HL63: 49
B64: =IF(SUM(C$15:C63)>=$B$8," ",$HG64) -> 50 | C64: =IF(ISNUMBER(B64),IF(ROUND($B$10,0)=B64,1,IF(B64>ROUND($B$10,1),IF(B64=INT($B$10+SUM($C$14:C63)*$B$9),1,""),"")),"") -> 1 | HG64: 50 | HL64: 50
B65: =IF(SUM(C$15:C64)>=$B$8," ",$HG65) -> 51 | C65: =IF(ISNUMBER(B65),IF(ROUND($B$10,0)=B65,1,IF(B65>ROUND($B$10,1),IF(B65=INT($B$10+SUM($C$14:C64)*$B$9),1,""),"")),"") ->  | HG65: 51 | HL65: 51
B66: =IF(SUM(C$15:C65)>=$B$8," ",$HG66) -> 52 | C66: =IF(ISNUMBER(B66),IF(ROUND($B$10,0)=B66,1,IF(B66>ROUND($B$10,1),IF(B66=INT($B$10+SUM($C$14:C65)*$B$9),1,""),"")),"") -> 1 | HG66: 52 | HL66: 52
B67: =IF(SUM(C$15:C66)>=$B$8," ",$HG67) -> 53 | C67: =IF(ISNUMBER(B67),IF(ROUND($B$10,0)=B67,1,IF(B67>ROUND($B$10,1),IF(B67=INT($B$10+SUM($C$14:C66)*$B$9),1,""),"")),"") -> 1 | HG67: 53 | HL67: 53
B68: =IF(SUM(C$15:C67)>=$B$8," ",$HG68) -> 54 | C68: =IF(ISNUMBER(B68),IF(ROUND($B$10,0)=B68,1,IF(B68>ROUND($B$10,1),IF(B68=INT($B$10+SUM($C$14:C67)*$B$9),1,""),"")),"") ->  | HG68: 54 | HL68: 54
B69: =IF(SUM(C$15:C68)>=$B$8," ",$HG69) -> 55 | C69: =IF(ISNUMBER(B69),IF(ROUND($B$10,0)=B69,1,IF(B69>ROUND($B$10,1),IF(B69=INT($B$10+SUM($C$14:C68)*$B$9),1,""),"")),"") -> 1 | HG69: 55 | HL69: 55
B70: =IF(SUM(C$15:C69)>=$B$8," ",$HG70) -> 56 | C70: =IF(ISNUMBER(B70),IF(ROUND($B$10,0)=B70,1,IF(B70>ROUND($B$10,1),IF(B70=INT($B$10+SUM($C$14:C69)*$B$9),1,""),"")),"") -> 1 | HG70: 56 | HL70: 56
B71: =IF(SUM(C$15:C70)>=$B$8," ",$HG71) -> 57 | C71: =IF(ISNUMBER(B71),IF(ROUND($B$10,0)=B71,1,IF(B71>ROUND($B$10,1),IF(B71=INT($B$10+SUM($C$14:C70)*$B$9),1,""),"")),"") ->  | HG71: 57 | HL71: 57
B72: =IF(SUM(C$15:C71)>=$B$8," ",$HG72) -> 58 | C72: =IF(ISNUMBER(B72),IF(ROUND($B$10,0)=B72,1,IF(B72>ROUND($B$10,1),IF(B72=INT($B$10+SUM($C$14:C71)*$B$9),1,""),"")),"") -> 1 | HG72: 58 | HL72: 58
B73: =IF(SUM(C$15:C72)>=$B$8," ",$HG73) -> 59 | C73: =IF(ISNUMBER(B73),IF(ROUND($B$10,0)=B73,1,IF(B73>ROUND($B$10,1),IF(B73=INT($B$10+SUM($C$14:C72)*$B$9),1,""),"")),"") -> 1 | HG73: 59 | HL73: 59
B74: =IF(SUM(C$15:C73)>=$B$8," ",$HG74) -> 60 | C74: =IF(ISNUMBER(B74),IF(ROUND($B$10,0)=B74,1,IF(B74>ROUND($B$10,1),IF(B74=INT($B$10+SUM($C$14:C73)*$B$9),1,""),"")),"") ->  | HG74: 60 | HL74: 60
B75: =IF(SUM(C$15:C74)>=$B$8," ",$HG75) -> 61 | C75: =IF(ISNUMBER(B75),IF(ROUND($B$10,0)=B75,1,IF(B75>ROUND($B$10,1),IF(B75=INT($B$10+SUM($C$14:C74)*$B$9),1,""),"")),"") -> 1 | HG75: 61 | HL75: 61
B76: =IF(SUM(C$15:C75)>=$B$8," ",$HG76) -> 62 | C76: =IF(ISNUMBER(B76),IF(ROUND($B$10,0)=B76,1,IF(B76>ROUND($B$10,1),IF(B76=INT($B$10+SUM($C$14:C75)*$B$9),1,""),"")),"") -> 1 | HG76: 62 | HL76: 62
B77: =IF(SUM(C$15:C76)>=$B$8," ",$HG77) -> 63 | C77: =IF(ISNUMBER(B77),IF(ROUND($B$10,0)=B77,1,IF(B77>ROUND($B$10,1),IF(B77=INT($B$10+SUM($C$14:C76)*$B$9),1,""),"")),"") -> 1 | HG77: 63 | HL77: 63
B78: =IF(SUM(C$15:C77)>=$B$8," ",$HG78) -> 64 | C78: =IF(ISNUMBER(B78),IF(ROUND($B$10,0)=B78,1,IF(B78>ROUND($B$10,1),IF(B78=INT($B$10+SUM($C$14:C77)*$B$9),1,""),"")),"") ->  | HG78: 64 | HL78: 64
B79: =IF(SUM(C$15:C78)>=$B$8," ",$HG79) -> 65 | C79: =IF(ISNUMBER(B79),IF(ROUND($B$10,0)=B79,1,IF(B79>ROUND($B$10,1),IF(B79=INT($B$10+SUM($C$14:C78)*$B$9),1,""),"")),"") -> 1 | HG79: 65 | HL79: 65
B80: =IF(SUM(C$15:C79)>=$B$8," ",$HG80) -> 66 | C80: =IF(ISNUMBER(B80),IF(ROUND($B$10,0)=B80,1,IF(B80>ROUND($B$10,1),IF(B80=INT($B$10+SUM($C$14:C79)*$B$9),1,""),"")),"") -> 1 | HG80: =HG79+1 -> 66 | HL80: 66
B81: =IF(SUM(C$15:C80)>=$B$8," ",$HG81) -> 67 | C81: =IF(ISNUMBER(B81),IF(ROUND($B$10,0)=B81,1,IF(B81>ROUND($B$10,1),IF(B81=INT($B$10+SUM($C$14:C80)*$B$9),1,""),"")),"") ->  | HG81: 67 | HL81: =HL80+1 -> 67
B82: =IF(SUM(C$15:C81)>=$B$8," ",$HG82) -> 68 | C82: =IF(ISNUMBER(B82),IF(ROUND($B$10,0)=B82,1,IF(B82>ROUND($B$10,1),IF(B82=INT($B$10+SUM($C$14:C81)*$B$9),1,""),"")),"") -> 1 | HG82: 68 | HL82: 68
B83: =IF(SUM(C$15:C82)>=$B$8," ",$HG83) -> 69 | C83: =IF(ISNUMBER(B83),IF(ROUND($B$10,0)=B83,1,IF(B83>ROUND($B$10,1),IF(B83=INT($B$10+SUM($C$14:C82)*$B$9),1,""),"")),"") -> 1 | HG83: 69 | HL83: 69
B84: =IF(SUM(C$15:C83)>=$B$8," ",$HG84) -> 70 | C84: =IF(ISNUMBER(B84),IF(ROUND($B$10,0)=B84,1,IF(B84>ROUND($B$10,1),IF(B84=INT($B$10+SUM($C$14:C83)*$B$9),1,""),"")),"") ->  | HG84: 70 | HL84: 70
B85: =IF(SUM(C$15:C84)>=$B$8," ",$HG85) -> 71 | C85: =IF(ISNUMBER(B85),IF(ROUND($B$10,0)=B85,1,IF(B85>ROUND($B$10,1),IF(B85=INT($B$10+SUM($C$14:C84)*$B$9),1,""),"")),"") -> 1 | HG85: 71 | HL85: 71
B86: =IF(SUM(C$15:C85)>=$B$8," ",$HG86) -> 72 | C86: =IF(ISNUMBER(B86),IF(ROUND($B$10,0)=B86,1,IF(B86>ROUND($B$10,1),IF(B86=INT($B$10+SUM($C$14:C85)*$B$9),1,""),"")),"") -> 1 | HG86: 72 | HL86: 72
B87: =IF(SUM(C$15:C86)>=$B$8," ",$HG87) -> 73 | C87: =IF(ISNUMBER(B87),IF(ROUND($B$10,0)=B87,1,IF(B87>ROUND($B$10,1),IF(B87=INT($B$10+SUM($C$14:C86)*$B$9),1,""),"")),"") ->  | HG87: 73 | HL87: 73
B88: =IF(SUM(C$15:C87)>=$B$8," ",$HG88) -> 74 | C88: =IF(ISNUMBER(B88),IF(ROUND($B$10,0)=B88,1,IF(B88>ROUND($B$10,1),IF(B88=INT($B$10+SUM($C$14:C87)*$B$9),1,""),"")),"") -> 1 | HG88: 74 | HL88: 74
B89: =IF(SUM(C$15:C88)>=$B$8," ",$HG89) -> 75 | C89: =IF(ISNUMBER(B89),IF(ROUND($B$10,0)=B89,1,IF(B89>ROUND($B$10,1),IF(B89=INT($B$10+SUM($C$14:C88)*$B$9),1,""),"")),"") -> 1 | HG89: 75 | HL89: 75
B90: =IF(SUM(C$15:C89)>=$B$8," ",$HG90) -> 76 | C90: =IF(ISNUMBER(B90),IF(ROUND($B$10,0)=B90,1,IF(B90>ROUND($B$10,1),IF(B90=INT($B$10+SUM($C$14:C89)*$B$9),1,""),"")),"") -> 1 | HG90: 76 | HL90: 76
B91: =IF(SUM(C$15:C90)>=$B$8," ",$HG91) -> 77 | C91: =IF(ISNUMBER(B91),IF(ROUND($B$10,0)=B91,1,IF(B91>ROUND($B$10,1),IF(B91=INT($B$10+SUM($C$14:C90)*$B$9),1,""),"")),"") ->  | HG91: 77 | HL91: 77
B92: =IF(SUM(C$15:C91)>=$B$8," ",$HG92) -> 78 | C92: =IF(ISNUMBER(B92),IF(ROUND($B$10,0)=B92,1,IF(B92>ROUND($B$10,1),IF(B92=INT($B$10+SUM($C$14:C91)*$B$9),1,""),"")),"") -> 1 | HG92: 78 | HL92: 78
B93: =IF(SUM(C$15:C92)>=$B$8," ",$HG93) -> 79 | C93: =IF(ISNUMBER(B93),IF(ROUND($B$10,0)=B93,1,IF(B93>ROUND($B$10,1),IF(B93=INT($B$10+SUM($C$14:C92)*$B$9),1,""),"")),"") -> 1 | HG93: 79 | HL93: 79
B94: =IF(SUM(C$15:C93)>=$B$8," ",$HG94) -> 80 | C94: =IF(ISNUMBER(B94),IF(ROUND($B$10,0)=B94,1,IF(B94>ROUND($B$10,1),IF(B94=INT($B$10+SUM($C$14:C93)*$B$9),1,""),"")),"") ->  | HG94: 80 | HL94: 80
B95: =IF(SUM(C$15:C94)>=$B$8," ",$HG95) -> 81 | C95: =IF(ISNUMBER(B95),IF(ROUND($B$10,0)=B95,1,IF(B95>ROUND($B$10,1),IF(B95=INT($B$10+SUM($C$14:C94)*$B$9),1,""),"")),"") -> 1 | HG95: 81 | HL95: 81
B96: =IF(SUM(C$15:C95)>=$B$8," ",$HG96) -> 82 | C96: =IF(ISNUMBER(B96),IF(ROUND($B$10,0)=B96,1,IF(B96>ROUND($B$10,1),IF(B96=INT($B$10+SUM($C$14:C95)*$B$9),1,""),"")),"") -> 1 | HG96: 82 | HL96: 82
B97: =IF(SUM(C$15:C96)>=$B$8," ",$HG97) -> 83 | C97: =IF(ISNUMBER(B97),IF(ROUND($B$10,0)=B97,1,IF(B97>ROUND($B$10,1),IF(B97=INT($B$10+SUM($C$14:C96)*$B$9),1,""),"")),"") ->  | HG97: 83 | HL97: 83
B98: =IF(SUM(C$15:C97)>=$B$8," ",$HG98) -> 84 | C98: =IF(ISNUMBER(B98),IF(ROUND($B$10,0)=B98,1,IF(B98>ROUND($B$10,1),IF(B98=INT($B$10+SUM($C$14:C97)*$B$9),1,""),"")),"") -> 1 | HG98: 84 | HL98: 84
B99: =IF(SUM(C$15:C98)>=$B$8," ",$HG99) -> 85 | C99: =IF(ISNUMBER(B99),IF(ROUND($B$10,0)=B99,1,IF(B99>ROUND($B$10,1),IF(B99=INT($B$10+SUM($C$14:C98)*$B$9),1,""),"")),"") -> 1 | HG99: 85 | HL99: 85
B100: =IF(SUM(C$15:C99)>=$B$8," ",$HG100) -> 86 | C100: =IF(ISNUMBER(B100),IF(ROUND($B$10,0)=B100,1,IF(B100>ROUND($B$10,1),IF(B100=INT($B$10+SUM($C$14:C99)*$B$9),1,""),"")),"") -> 1 | HG100: 86 | HL100: 86
B101: =IF(SUM(C$15:C100)>=$B$8," ",$HG101) -> 87 | C101: =IF(ISNUMBER(B101),IF(ROUND($B$10,0)=B101,1,IF(B101>ROUND($B$10,1),IF(B101=INT($B$10+SUM($C$14:C100)*$B$9),1,""),"")),"") ->  | HG101: 87 | HL101: 87
B102: =IF(SUM(C$15:C101)>=$B$8," ",$HG102) -> 88 | C102: =IF(ISNUMBER(B102),IF(ROUND($B$10,0)=B102,1,IF(B102>ROUND($B$10,1),IF(B102=INT($B$10+SUM($C$14:C101)*$B$9),1,""),"")),"") -> 1 | HG102: 88 | HL102: 88
B103: =IF(SUM(C$15:C102)>=$B$8," ",$HG103) -> 89 | C103: =IF(ISNUMBER(B103),IF(ROUND($B$10,0)=B103,1,IF(B103>ROUND($B$10,1),IF(B103=INT($B$10+SUM($C$14:C102)*$B$9),1,""),"")),"") -> 1 | HG103: 89 | HL103: 89
B104: =IF(SUM(C$15:C103)>=$B$8," ",$HG104) -> 90 | C104: =IF(ISNUMBER(B104),IF(ROUND($B$10,0)=B104,1,IF(B104>ROUND($B$10,1),IF(B104=INT($B$10+SUM($C$14:C103)*$B$9),1,""),"")),"") ->  | HG104: 90 | HL104: 90
B105: =IF(SUM(C$15:C104)>=$B$8," ",$HG105) -> 91 | C105: =IF(ISNUMBER(B105),IF(ROUND($B$10,0)=B105,1,IF(B105>ROUND($B$10,1),IF(B105=INT($B$10+SUM($C$14:C104)*$B$9),1,""),"")),"") -> 1 | HG105: 91 | HL105: 91
B106: =IF(SUM(C$15:C105)>=$B$8," ",$HG106) -> 92 | C106: =IF(ISNUMBER(B106),IF(ROUND($B$10,0)=B106,1,IF(B106>ROUND($B$10,1),IF(B106=INT($B$10+SUM($C$14:C105)*$B$9),1,""),"")),"") -> 1 | HG106: 92 | HL106: 92
B107: =IF(SUM(C$15:C106)>=$B$8," ",$HG107) -> 93 | C107: =IF(ISNUMBER(B107),IF(ROUND($B$10,0)=B107,1,IF(B107>ROUND($B$10,1),IF(B107=INT($B$10+SUM($C$14:C106)*$B$9),1,""),"")),"") ->  | HG107: 93 | HL107: 93
B108: =IF(SUM(C$15:C107)>=$B$8," ",$HG108) -> 94 | C108: =IF(ISNUMBER(B108),IF(ROUND($B$10,0)=B108,1,IF(B108>ROUND($B$10,1),IF(B108=INT($B$10+SUM($C$14:C107)*$B$9),1,""),"")),"") -> 1 | HG108: 94 | HL108: 94
B109: =IF(SUM(C$15:C108)>=$B$8," ",$HG109) -> 95 | C109: =IF(ISNUMBER(B109),IF(ROUND($B$10,0)=B109,1,IF(B109>ROUND($B$10,1),IF(B109=INT($B$10+SUM($C$14:C108)*$B$9),1,""),"")),"") -> 1 | HG109: 95 | HL109: 95
B110: =IF(SUM(C$15:C109)>=$B$8," ",$HG110) -> 96 | C110: =IF(ISNUMBER(B110),IF(ROUND($B$10,0)=B110,1,IF(B110>ROUND($B$10,1),IF(B110=INT($B$10+SUM($C$14:C109)*$B$9),1,""),"")),"") ->  | HG110: 96 | HL110: 96
B111: =IF(SUM(C$15:C110)>=$B$8," ",$HG111) -> 97 | C111: =IF(ISNUMBER(B111),IF(ROUND($B$10,0)=B111,1,IF(B111>ROUND($B$10,1),IF(B111=INT($B$10+SUM($C$14:C110)*$B$9),1,""),"")),"") -> 1 | HG111: 97 | HL111: 97
B112: =IF(SUM(C$15:C111)>=$B$8," ",$HG112) -> 98 | C112: =IF(ISNUMBER(B112),IF(ROUND($B$10,0)=B112,1,IF(B112>ROUND($B$10,1),IF(B112=INT($B$10+SUM($C$14:C111)*$B$9),1,""),"")),"") -> 1 | HG112: 98 | HL112: 98
B113: =IF(SUM(C$15:C112)>=$B$8," ",$HG113) -> 99 | C113: =IF(ISNUMBER(B113),IF(ROUND($B$10,0)=B113,1,IF(B113>ROUND($B$10,1),IF(B113=INT($B$10+SUM($C$14:C112)*$B$9),1,""),"")),"") -> 1 | HG113: 99 | HL113: 99
B114: =IF(SUM(C$15:C113)>=$B$8," ",$HG114) -> 100 | C114: =IF(ISNUMBER(B114),IF(ROUND($B$10,0)=B114,1,IF(B114>ROUND($B$10,1),IF(B114=INT($B$10+SUM($C$14:C113)*$B$9),1,""),"")),"") ->  | HG114: 100 | HL114: 100
B115: =IF(SUM(C$15:C114)>=$B$8," ",$HG115) -> 101 | C115: =IF(ISNUMBER(B115),IF(ROUND($B$10,0)=B115,1,IF(B115>ROUND($B$10,1),IF(B115=INT($B$10+SUM($C$14:C114)*$B$9),1,""),"")),"") -> 1 | HG115: 101 | HL115: 101
B116: =IF(SUM(C$15:C115)>=$B$8," ",$HG116) -> 102 | C116: =IF(ISNUMBER(B116),IF(ROUND($B$10,0)=B116,1,IF(B116>ROUND($B$10,1),IF(B116=INT($B$10+SUM($C$14:C115)*$B$9),1,""),"")),"") -> 1 | HG116: 102 | HL116: 102
B117: =IF(SUM(C$15:C116)>=$B$8," ",$HG117) -> 103 | C117: =IF(ISNUMBER(B117),IF(ROUND($B$10,0)=B117,1,IF(B117>ROUND($B$10,1),IF(B117=INT($B$10+SUM($C$14:C116)*$B$9),1,""),"")),"") ->  | HG117: 103 | HL117: 103
B118: =IF(SUM(C$15:C117)>=$B$8," ",$HG118) -> 104 | C118: =IF(ISNUMBER(B118),IF(ROUND($B$10,0)=B118,1,IF(B118>ROUND($B$10,1),IF(B118=INT($B$10+SUM($C$14:C117)*$B$9),1,""),"")),"") -> 1 | HG118: 104 | HL118: 104
B119: =IF(SUM(C$15:C118)>=$B$8," ",$HG119) -> 105 | C119: =IF(ISNUMBER(B119),IF(ROUND($B$10,0)=B119,1,IF(B119>ROUND($B$10,1),IF(B119=INT($B$10+SUM($C$14:C118)*$B$9),1,""),"")),"") -> 1 | HG119: 105 | HL119: 105
B120: =IF(SUM(C$15:C119)>=$B$8," ",$HG120) -> 106 | C120: =IF(ISNUMBER(B120),IF(ROUND($B$10,0)=B120,1,IF(B120>ROUND($B$10,1),IF(B120=INT($B$10+SUM($C$14:C119)*$B$9),1,""),"")),"") ->  | HG120: 106 | HL120: 106
B121: =IF(SUM(C$15:C120)>=$B$8," ",$HG121) -> 107 | C121: =IF(ISNUMBER(B121),IF(ROUND($B$10,0)=B121,1,IF(B121>ROUND($B$10,1),IF(B121=INT($B$10+SUM($C$14:C120)*$B$9),1,""),"")),"") -> 1 | HG121: 107 | HL121: 107
B122: =IF(SUM(C$15:C121)>=$B$8," ",$HG122) -> 108 | C122: =IF(ISNUMBER(B122),IF(ROUND($B$10,0)=B122,1,IF(B122>ROUND($B$10,1),IF(B122=INT($B$10+SUM($C$14:C121)*$B$9),1,""),"")),"") -> 1 | HG122: 108 | HL122: 108
B123: =IF(SUM(C$15:C122)>=$B$8," ",$HG123) -> 109 | C123: =IF(ISNUMBER(B123),IF(ROUND($B$10,0)=B123,1,IF(B123>ROUND($B$10,1),IF(B123=INT($B$10+SUM($C$14:C122)*$B$9),1,""),"")),"") ->  | HG123: 109 | HL123: 109
B124: =IF(SUM(C$15:C123)>=$B$8," ",$HG124) -> 110 | C124: =IF(ISNUMBER(B124),IF(ROUND($B$10,0)=B124,1,IF(B124>ROUND($B$10,1),IF(B124=INT($B$10+SUM($C$14:C123)*$B$9),1,""),"")),"") -> 1 | HG124: 110 | HL124: 110
B125: =IF(SUM(C$15:C124)>=$B$8," ",$HG125) -> 111 | C125: =IF(ISNUMBER(B125),IF(ROUND($B$10,0)=B125,1,IF(B125>ROUND($B$10,1),IF(B125=INT($B$10+SUM($C$14:C124)*$B$9),1,""),"")),"") -> 1 | HG125: 111 | HL125: 111
B126: =IF(SUM(C$15:C125)>=$B$8," ",$HG126) -> 112 | C126: =IF(ISNUMBER(B126),IF(ROUND($B$10,0)=B126,1,IF(B126>ROUND($B$10,1),IF(B126=INT($B$10+SUM($C$14:C125)*$B$9),1,""),"")),"") -> 1 | HG126: 112 | HL126: 112
B127: =IF(SUM(C$15:C126)>=$B$8," ",$HG127) -> 113 | C127: =IF(ISNUMBER(B127),IF(ROUND($B$10,0)=B127,1,IF(B127>ROUND($B$10,1),IF(B127=INT($B$10+SUM($C$14:C126)*$B$9),1,""),"")),"") ->  | HG127: 113 | HL127: 113
B128: =IF(SUM(C$15:C127)>=$B$8," ",$HG128) -> 114 | C128: =IF(ISNUMBER(B128),IF(ROUND($B$10,0)=B128,1,IF(B128>ROUND($B$10,1),IF(B128=INT($B$10+SUM($C$14:C127)*$B$9),1,""),"")),"") -> 1 | HG128: 114 | HL128: 114
B129: =IF(SUM(C$15:C128)>=$B$8," ",$HG129) -> 115 | C129: =IF(ISNUMBER(B129),IF(ROUND($B$10,0)=B129,1,IF(B129>ROUND($B$10,1),IF(B129=INT($B$10+SUM($C$14:C128)*$B$9),1,""),"")),"") -> 1 | HG129: 115 | HL129: 115
B130: =IF(SUM(C$15:C129)>=$B$8," ",$HG130) -> 116 | C130: =IF(ISNUMBER(B130),IF(ROUND($B$10,0)=B130,1,IF(B130>ROUND($B$10,1),IF(B130=INT($B$10+SUM($C$14:C129)*$B$9),1,""),"")),"") ->  | HG130: 116 | HL130: 116
B131: =IF(SUM(C$15:C130)>=$B$8," ",$HG131) -> 117 | C131: =IF(ISNUMBER(B131),IF(ROUND($B$10,0)=B131,1,IF(B131>ROUND($B$10,1),IF(B131=INT($B$10+SUM($C$14:C130)*$B$9),1,""),"")),"") -> 1 | HG131: 117 | HL131: 117
B132: =IF(SUM(C$15:C131)>=$B$8," ",$HG132) -> 118 | C132: =IF(ISNUMBER(B132),IF(ROUND($B$10,0)=B132,1,IF(B132>ROUND($B$10,1),IF(B132=INT($B$10+SUM($C$14:C131)*$B$9),1,""),"")),"") -> 1 | HG132: 118 | HL132: 118
B133: =IF(SUM(C$15:C132)>=$B$8," ",$HG133) -> 119 | C133: =IF(ISNUMBER(B133),IF(ROUND($B$10,0)=B133,1,IF(B133>ROUND($B$10,1),IF(B133=INT($B$10+SUM($C$14:C132)*$B$9),1,""),"")),"") ->  | HG133: 119 | HL133: 119
B134: =IF(SUM(C$15:C133)>=$B$8," ",$HG134) -> 120 | C134: =IF(ISNUMBER(B134),IF(ROUND($B$10,0)=B134,1,IF(B134>ROUND($B$10,1),IF(B134=INT($B$10+SUM($C$14:C133)*$B$9),1,""),"")),"") -> 1 | HG134: 120 | HL134: 120
B135: =IF(SUM(C$15:C134)>=$B$8," ",$HG135) -> 121 | C135: =IF(ISNUMBER(B135),IF(ROUND($B$10,0)=B135,1,IF(B135>ROUND($B$10,1),IF(B135=INT($B$10+SUM($C$14:C134)*$B$9),1,""),"")),"") -> 1 | HG135: 121 | HL135: 121
B136: =IF(SUM(C$15:C135)>=$B$8," ",$HG136) -> 122 | C136: =IF(ISNUMBER(B136),IF(ROUND($B$10,0)=B136,1,IF(B136>ROUND($B$10,1),IF(B136=INT($B$10+SUM($C$14:C135)*$B$9),1,""),"")),"") -> 1 | HG136: 122 | HL136: 122
B137: =IF(SUM(C$15:C136)>=$B$8," ",$HG137) -> 123 | C137: =IF(ISNUMBER(B137),IF(ROUND($B$10,0)=B137,1,IF(B137>ROUND($B$10,1),IF(B137=INT($B$10+SUM($C$14:C136)*$B$9),1,""),"")),"") ->  | HG137: 123 | HL137: 123
B138: =IF(SUM(C$15:C137)>=$B$8," ",$HG138) -> 124 | C138: =IF(ISNUMBER(B138),IF(ROUND($B$10,0)=B138,1,IF(B138>ROUND($B$10,1),IF(B138=INT($B$10+SUM($C$14:C137)*$B$9),1,""),"")),"") -> 1 | HG138: 124 | HL138: 124
B139: =IF(SUM(C$15:C138)>=$B$8," ",$HG139) -> 125 | C139: =IF(ISNUMBER(B139),IF(ROUND($B$10,0)=B139,1,IF(B139>ROUND($B$10,1),IF(B139=INT($B$10+SUM($C$14:C138)*$B$9),1,""),"")),"") -> 1 | HG139: 125 | HL139: 125
B140: =IF(SUM(C$15:C139)>=$B$8," ",$HG140) -> 126 | C140: =IF(ISNUMBER(B140),IF(ROUND($B$10,0)=B140,1,IF(B140>ROUND($B$10,1),IF(B140=INT($B$10+SUM($C$14:C139)*$B$9),1,""),"")),"") ->  | HG140: 126 | HL140: 126
B141: =IF(SUM(C$15:C140)>=$B$8," ",$HG141) -> 127 | C141: =IF(ISNUMBER(B141),IF(ROUND($B$10,0)=B141,1,IF(B141>ROUND($B$10,1),IF(B141=INT($B$10+SUM($C$14:C140)*$B$9),1,""),"")),"") -> 1 | HG141: 127 | HL141: 127
B142: =IF(SUM(C$15:C141)>=$B$8," ",$HG142) -> 128 | C142: =IF(ISNUMBER(B142),IF(ROUND($B$10,0)=B142,1,IF(B142>ROUND($B$10,1),IF(B142=INT($B$10+SUM($C$14:C141)*$B$9),1,""),"")),"") -> 1 | HG142: 128 | HL142: 128
B143: =IF(SUM(C$15:C142)>=$B$8," ",$HG143) -> 129 | C143: =IF(ISNUMBER(B143),IF(ROUND($B$10,0)=B143,1,IF(B143>ROUND($B$10,1),IF(B143=INT($B$10+SUM($C$14:C142)*$B$9),1,""),"")),"") ->  | HG143: 129 | HL143: 129
B144: =IF(SUM(C$15:C143)>=$B$8," ",$HG144) -> 130 | C144: =IF(ISNUMBER(B144),IF(ROUND($B$10,0)=B144,1,IF(B144>ROUND($B$10,1),IF(B144=INT($B$10+SUM($C$14:C143)*$B$9),1,""),"")),"") -> 1 | HG144: =HG143+1 -> 130 | HL144: 130
B145: =IF(SUM(C$15:C144)>=$B$8," ",$HG145) -> 131 | C145: =IF(ISNUMBER(B145),IF(ROUND($B$10,0)=B145,1,IF(B145>ROUND($B$10,1),IF(B145=INT($B$10+SUM($C$14:C144)*$B$9),1,""),"")),"") -> 1 | HG145: 131 | HL145: =HL144+1 -> 131
B146: =IF(SUM(C$15:C145)>=$B$8," ",$HG146) -> 132 | C146: =IF(ISNUMBER(B146),IF(ROUND($B$10,0)=B146,1,IF(B146>ROUND($B$10,1),IF(B146=INT($B$10+SUM($C$14:C145)*$B$9),1,""),"")),"") ->  | HG146: 132 | HL146: 132
B147: =IF(SUM(C$15:C146)>=$B$8," ",$HG147) -> 133 | C147: =IF(ISNUMBER(B147),IF(ROUND($B$10,0)=B147,1,IF(B147>ROUND($B$10,1),IF(B147=INT($B$10+SUM($C$14:C146)*$B$9),1,""),"")),"") -> 1 | HG147: 133 | HL147: 133
B148: =IF(SUM(C$15:C147)>=$B$8," ",$HG148) -> 134 | C148: =IF(ISNUMBER(B148),IF(ROUND($B$10,0)=B148,1,IF(B148>ROUND($B$10,1),IF(B148=INT($B$10+SUM($C$14:C147)*$B$9),1,""),"")),"") -> 1 | HG148: 134 | HL148: 134
B149: =IF(SUM(C$15:C148)>=$B$8," ",$HG149) -> 135 | C149: =IF(ISNUMBER(B149),IF(ROUND($B$10,0)=B149,1,IF(B149>ROUND($B$10,1),IF(B149=INT($B$10+SUM($C$14:C148)*$B$9),1,""),"")),"") -> 1 | HG149: 135 | HL149: 135
B150: =IF(SUM(C$15:C149)>=$B$8," ",$HG150) -> 136 | C150: =IF(ISNUMBER(B150),IF(ROUND($B$10,0)=B150,1,IF(B150>ROUND($B$10,1),IF(B150=INT($B$10+SUM($C$14:C149)*$B$9),1,""),"")),"") ->  | HG150: 136 | HL150: 136
B151: =IF(SUM(C$15:C150)>=$B$8," ",$HG151) -> 137 | C151: =IF(ISNUMBER(B151),IF(ROUND($B$10,0)=B151,1,IF(B151>ROUND($B$10,1),IF(B151=INT($B$10+SUM($C$14:C150)*$B$9),1,""),"")),"") -> 1 | HG151: 137 | HL151: 137
B152: =IF(SUM(C$15:C151)>=$B$8," ",$HG152) -> 138 | C152: =IF(ISNUMBER(B152),IF(ROUND($B$10,0)=B152,1,IF(B152>ROUND($B$10,1),IF(B152=INT($B$10+SUM($C$14:C151)*$B$9),1,""),"")),"") -> 1 | HG152: 138 | HL152: 138
B153: =IF(SUM(C$15:C152)>=$B$8," ",$HG153) -> 139 | C153: =IF(ISNUMBER(B153),IF(ROUND($B$10,0)=B153,1,IF(B153>ROUND($B$10,1),IF(B153=INT($B$10+SUM($C$14:C152)*$B$9),1,""),"")),"") ->  | HG153: 139 | HL153: 139
B154: =IF(SUM(C$15:C153)>=$B$8," ",$HG154) -> 140 | C154: =IF(ISNUMBER(B154),IF(ROUND($B$10,0)=B154,1,IF(B154>ROUND($B$10,1),IF(B154=INT($B$10+SUM($C$14:C153)*$B$9),1,""),"")),"") -> 1 | HG154: 140 | HL154: 140
B155: =IF(SUM(C$15:C154)>=$B$8," ",$HG155) -> 141 | C155: =IF(ISNUMBER(B155),IF(ROUND($B$10,0)=B155,1,IF(B155>ROUND($B$10,1),IF(B155=INT($B$10+SUM($C$14:C154)*$B$9),1,""),"")),"") -> 1 | HG155: 141 | HL155: 141
B156: =IF(SUM(C$15:C155)>=$B$8," ",$HG156) -> 142 | C156: =IF(ISNUMBER(B156),IF(ROUND($B$10,0)=B156,1,IF(B156>ROUND($B$10,1),IF(B156=INT($B$10+SUM($C$14:C155)*$B$9),1,""),"")),"") ->  | HG156: 142 | HL156: 142
B157: =IF(SUM(C$15:C156)>=$B$8," ",$HG157) -> 143 | C157: =IF(ISNUMBER(B157),IF(ROUND($B$10,0)=B157,1,IF(B157>ROUND($B$10,1),IF(B157=INT($B$10+SUM($C$14:C156)*$B$9),1,""),"")),"") -> 1 | HG157: 143 | HL157: 143
B158: =IF(SUM(C$15:C157)>=$B$8," ",$HG158) -> 144 | C158: =IF(ISNUMBER(B158),IF(ROUND($B$10,0)=B158,1,IF(B158>ROUND($B$10,1),IF(B158=INT($B$10+SUM($C$14:C157)*$B$9),1,""),"")),"") -> 1 | HG158: 144 | HL158: 144
B159: =IF(SUM(C$15:C158)>=$B$8," ",$HG159) -> 145 | C159: =IF(ISNUMBER(B159),IF(ROUND($B$10,0)=B159,1,IF(B159>ROUND($B$10,1),IF(B159=INT($B$10+SUM($C$14:C158)*$B$9),1,""),"")),"") ->  | HG159: 145 | HL159: 145
B160: =IF(SUM(C$15:C159)>=$B$8," ",$HG160) -> 146 | C160: =IF(ISNUMBER(B160),IF(ROUND($B$10,0)=B160,1,IF(B160>ROUND($B$10,1),IF(B160=INT($B$10+SUM($C$14:C159)*$B$9),1,""),"")),"") -> 1 | HG160: 146 | HL160: 146
B161: =IF(SUM(C$15:C160)>=$B$8," ",$HG161) -> 147 | C161: =IF(ISNUMBER(B161),IF(ROUND($B$10,0)=B161,1,IF(B161>ROUND($B$10,1),IF(B161=INT($B$10+SUM($C$14:C160)*$B$9),1,""),"")),"") -> 1 | HG161: 147 | HL161: 147
B162: =IF(SUM(C$15:C161)>=$B$8," ",$HG162) -> 148 | C162: =IF(ISNUMBER(B162),IF(ROUND($B$10,0)=B162,1,IF(B162>ROUND($B$10,1),IF(B162=INT($B$10+SUM($C$14:C161)*$B$9),1,""),"")),"") -> 1 | HG162: 148 | HL162: 148
B163: =IF(SUM(C$15:C162)>=$B$8," ",$HG163) -> 149 | C163: =IF(ISNUMBER(B163),IF(ROUND($B$10,0)=B163,1,IF(B163>ROUND($B$10,1),IF(B163=INT($B$10+SUM($C$14:C162)*$B$9),1,""),"")),"") ->  | HG163: 149 | HL163: 149
B164: =IF(SUM(C$15:C163)>=$B$8," ",$HG164) -> 150 | C164: =IF(ISNUMBER(B164),IF(ROUND($B$10,0)=B164,1,IF(B164>ROUND($B$10,1),IF(B164=INT($B$10+SUM($C$14:C163)*$B$9),1,""),"")),"") -> 1 | HG164: 150 | HL164: 150
B165: =IF(SUM(C$15:C164)>=$B$8," ",$HG165) -> 151 | C165: =IF(ISNUMBER(B165),IF(ROUND($B$10,0)=B165,1,IF(B165>ROUND($B$10,1),IF(B165=INT($B$10+SUM($C$14:C164)*$B$9),1,""),"")),"") -> 1 | HG165: 151 | HL165: 151
B166: =IF(SUM(C$15:C165)>=$B$8," ",$HG166) -> 152 | C166: =IF(ISNUMBER(B166),IF(ROUND($B$10,0)=B166,1,IF(B166>ROUND($B$10,1),IF(B166=INT($B$10+SUM($C$14:C165)*$B$9),1,""),"")),"") ->  | HG166: 152 | HL166: 152
B167: =IF(SUM(C$15:C166)>=$B$8," ",$HG167) -> 153 | C167: =IF(ISNUMBER(B167),IF(ROUND($B$10,0)=B167,1,IF(B167>ROUND($B$10,1),IF(B167=INT($B$10+SUM($C$14:C166)*$B$9),1,""),"")),"") -> 1 | HG167: 153 | HL167: 153
B168: =IF(SUM(C$15:C167)>=$B$8," ",$HG168) -> 154 | C168: =IF(ISNUMBER(B168),IF(ROUND($B$10,0)=B168,1,IF(B168>ROUND($B$10,1),IF(B168=INT($B$10+SUM($C$14:C167)*$B$9),1,""),"")),"") -> 1 | HG168: 154 | HL168: 154
B169: =IF(SUM(C$15:C168)>=$B$8," ",$HG169) -> 155 | C169: =IF(ISNUMBER(B169),IF(ROUND($B$10,0)=B169,1,IF(B169>ROUND($B$10,1),IF(B169=INT($B$10+SUM($C$14:C168)*$B$9),1,""),"")),"") ->  | HG169: 155 | HL169: 155
B170: =IF(SUM(C$15:C169)>=$B$8," ",$HG170) -> 156 | C170: =IF(ISNUMBER(B170),IF(ROUND($B$10,0)=B170,1,IF(B170>ROUND($B$10,1),IF(B170=INT($B$10+SUM($C$14:C169)*$B$9),1,""),"")),"") -> 1 | HG170: 156 | HL170: 156
B171: =IF(SUM(C$15:C170)>=$B$8," ",$HG171) -> 157 | C171: =IF(ISNUMBER(B171),IF(ROUND($B$10,0)=B171,1,IF(B171>ROUND($B$10,1),IF(B171=INT($B$10+SUM($C$14:C170)*$B$9),1,""),"")),"") -> 1 | HG171: 157 | HL171: 157
B172: =IF(SUM(C$15:C171)>=$B$8," ",$HG172) -> 158 | C172: =IF(ISNUMBER(B172),IF(ROUND($B$10,0)=B172,1,IF(B172>ROUND($B$10,1),IF(B172=INT($B$10+SUM($C$14:C171)*$B$9),1,""),"")),"") -> 1 | HG172: 158 | HL172: 158
B173: =IF(SUM(C$15:C172)>=$B$8," ",$HG173) -> 159 | C173: =IF(ISNUMBER(B173),IF(ROUND($B$10,0)=B173,1,IF(B173>ROUND($B$10,1),IF(B173=INT($B$10+SUM($C$14:C172)*$B$9),1,""),"")),"") ->  | HG173: 159 | HL173: 159
B174: =IF(SUM(C$15:C173)>=$B$8," ",$HG174) -> 160 | C174: =IF(ISNUMBER(B174),IF(ROUND($B$10,0)=B174,1,IF(B174>ROUND($B$10,1),IF(B174=INT($B$10+SUM($C$14:C173)*$B$9),1,""),"")),"") -> 1 | HG174: 160 | HL174: 160
B175: =IF(SUM(C$15:C174)>=$B$8," ",$HG175) -> 161 | C175: =IF(ISNUMBER(B175),IF(ROUND($B$10,0)=B175,1,IF(B175>ROUND($B$10,1),IF(B175=INT($B$10+SUM($C$14:C174)*$B$9),1,""),"")),"") -> 1 | HG175: 161 | HL175: 161
B176: =IF(SUM(C$15:C175)>=$B$8," ",$HG176) -> 162 | C176: =IF(ISNUMBER(B176),IF(ROUND($B$10,0)=B176,1,IF(B176>ROUND($B$10,1),IF(B176=INT($B$10+SUM($C$14:C175)*$B$9),1,""),"")),"") ->  | HG176: 162 | HL176: 162
B177: =IF(SUM(C$15:C176)>=$B$8," ",$HG177) -> 163 | C177: =IF(ISNUMBER(B177),IF(ROUND($B$10,0)=B177,1,IF(B177>ROUND($B$10,1),IF(B177=INT($B$10+SUM($C$14:C176)*$B$9),1,""),"")),"") -> 1 | HG177: 163 | HL177: 163
B178: =IF(SUM(C$15:C177)>=$B$8," ",$HG178) -> 164 | C178: =IF(ISNUMBER(B178),IF(ROUND($B$10,0)=B178,1,IF(B178>ROUND($B$10,1),IF(B178=INT($B$10+SUM($C$14:C177)*$B$9),1,""),"")),"") -> 1 | HG178: 164 | HL178: 164
B179: =IF(SUM(C$15:C178)>=$B$8," ",$HG179) -> 165 | C179: =IF(ISNUMBER(B179),IF(ROUND($B$10,0)=B179,1,IF(B179>ROUND($B$10,1),IF(B179=INT($B$10+SUM($C$14:C178)*$B$9),1,""),"")),"") ->  | HG179: 165 | HL179: 165
B180: =IF(SUM(C$15:C179)>=$B$8," ",$HG180) -> 166 | C180: =IF(ISNUMBER(B180),IF(ROUND($B$10,0)=B180,1,IF(B180>ROUND($B$10,1),IF(B180=INT($B$10+SUM($C$14:C179)*$B$9),1,""),"")),"") -> 1 | HG180: 166 | HL180: 166
B181: =IF(SUM(C$15:C180)>=$B$8," ",$HG181) -> 167 | C181: =IF(ISNUMBER(B181),IF(ROUND($B$10,0)=B181,1,IF(B181>ROUND($B$10,1),IF(B181=INT($B$10+SUM($C$14:C180)*$B$9),1,""),"")),"") -> 1 | HG181: 167 | HL181: 167
B182: =IF(SUM(C$15:C181)>=$B$8," ",$HG182) -> 168 | C182: =IF(ISNUMBER(B182),IF(ROUND($B$10,0)=B182,1,IF(B182>ROUND($B$10,1),IF(B182=INT($B$10+SUM($C$14:C181)*$B$9),1,""),"")),"") ->  | HG182: 168 | HL182: 168
B183: =IF(SUM(C$15:C182)>=$B$8," ",$HG183) -> 169 | C183: =IF(ISNUMBER(B183),IF(ROUND($B$10,0)=B183,1,IF(B183>ROUND($B$10,1),IF(B183=INT($B$10+SUM($C$14:C182)*$B$9),1,""),"")),"") -> 1 | HG183: 169 | HL183: 169
B184: =IF(SUM(C$15:C183)>=$B$8," ",$HG184) -> 170 | C184: =IF(ISNUMBER(B184),IF(ROUND($B$10,0)=B184,1,IF(B184>ROUND($B$10,1),IF(B184=INT($B$10+SUM($C$14:C183)*$B$9),1,""),"")),"") -> 1 | HG184: 170 | HL184: 170
B185: =IF(SUM(C$15:C184)>=$B$8," ",$HG185) -> 171 | C185: =IF(ISNUMBER(B185),IF(ROUND($B$10,0)=B185,1,IF(B185>ROUND($B$10,1),IF(B185=INT($B$10+SUM($C$14:C184)*$B$9),1,""),"")),"") -> 1 | HG185: 171 | HL185: 171
B186: =IF(SUM(C$15:C185)>=$B$8," ",$HG186) -> 172 | C186: =IF(ISNUMBER(B186),IF(ROUND($B$10,0)=B186,1,IF(B186>ROUND($B$10,1),IF(B186=INT($B$10+SUM($C$14:C185)*$B$9),1,""),"")),"") ->  | HG186: 172 | HL186: 172
B187: =IF(SUM(C$15:C186)>=$B$8," ",$HG187) -> 173 | C187: =IF(ISNUMBER(B187),IF(ROUND($B$10,0)=B187,1,IF(B187>ROUND($B$10,1),IF(B187=INT($B$10+SUM($C$14:C186)*$B$9),1,""),"")),"") -> 1 | HG187: 173 | HL187: 173
B188: =IF(SUM(C$15:C187)>=$B$8," ",$HG188) -> 174 | C188: =IF(ISNUMBER(B188),IF(ROUND($B$10,0)=B188,1,IF(B188>ROUND($B$10,1),IF(B188=INT($B$10+SUM($C$14:C187)*$B$9),1,""),"")),"") -> 1 | HG188: 174 | HL188: 174
B189: =IF(SUM(C$15:C188)>=$B$8," ",$HG189) -> 175 | C189: =IF(ISNUMBER(B189),IF(ROUND($B$10,0)=B189,1,IF(B189>ROUND($B$10,1),IF(B189=INT($B$10+SUM($C$14:C188)*$B$9),1,""),"")),"") ->  | HG189: 175 | HL189: 175
B190: =IF(SUM(C$15:C189)>=$B$8," ",$HG190) -> 176 | C190: =IF(ISNUMBER(B190),IF(ROUND($B$10,0)=B190,1,IF(B190>ROUND($B$10,1),IF(B190=INT($B$10+SUM($C$14:C189)*$B$9),1,""),"")),"") -> 1 | HG190: 176 | HL190: 176
B191: =IF(SUM(C$15:C190)>=$B$8," ",$HG191) -> 177 | C191: =IF(ISNUMBER(B191),IF(ROUND($B$10,0)=B191,1,IF(B191>ROUND($B$10,1),IF(B191=INT($B$10+SUM($C$14:C190)*$B$9),1,""),"")),"") -> 1 | HG191: 177 | HL191: 177
B192: =IF(SUM(C$15:C191)>=$B$8," ",$HG192) -> 178 | C192: =IF(ISNUMBER(B192),IF(ROUND($B$10,0)=B192,1,IF(B192>ROUND($B$10,1),IF(B192=INT($B$10+SUM($C$14:C191)*$B$9),1,""),"")),"") ->  | HG192: 178 | HL192: 178
B193: =IF(SUM(C$15:C192)>=$B$8," ",$HG193) -> 179 | C193: =IF(ISNUMBER(B193),IF(ROUND($B$10,0)=B193,1,IF(B193>ROUND($B$10,1),IF(B193=INT($B$10+SUM($C$14:C192)*$B$9),1,""),"")),"") -> 1 | HG193: 179 | HL193: 179
B194: =IF(SUM(C$15:C193)>=$B$8," ",$HG194) -> 180 | C194: =IF(ISNUMBER(B194),IF(ROUND($B$10,0)=B194,1,IF(B194>ROUND($B$10,1),IF(B194=INT($B$10+SUM($C$14:C193)*$B$9),1,""),"")),"") -> 1 | HG194: 180 | HL194: 180
B195: =IF(SUM(C$15:C194)>=$B$8," ",$HG195) -> 181 | C195: =IF(ISNUMBER(B195),IF(ROUND($B$10,0)=B195,1,IF(B195>ROUND($B$10,1),IF(B195=INT($B$10+SUM($C$14:C194)*$B$9),1,""),"")),"") ->  | HG195: 181 | HL195: 181
B196: =IF(SUM(C$15:C195)>=$B$8," ",$HG196) -> 182 | C196: =IF(ISNUMBER(B196),IF(ROUND($B$10,0)=B196,1,IF(B196>ROUND($B$10,1),IF(B196=INT($B$10+SUM($C$14:C195)*$B$9),1,""),"")),"") -> 1 | HG196: 182 | HL196: 182
B197: =IF(SUM(C$15:C196)>=$B$8," ",$HG197) -> 183 | C197: =IF(ISNUMBER(B197),IF(ROUND($B$10,0)=B197,1,IF(B197>ROUND($B$10,1),IF(B197=INT($B$10+SUM($C$14:C196)*$B$9),1,""),"")),"") -> 1 | HG197: 183 | HL197: 183
B198: =IF(SUM(C$15:C197)>=$B$8," ",$HG198) -> 184 | C198: =IF(ISNUMBER(B198),IF(ROUND($B$10,0)=B198,1,IF(B198>ROUND($B$10,1),IF(B198=INT($B$10+SUM($C$14:C197)*$B$9),1,""),"")),"") -> 1 | HG198: 184 | HL198: 184
B199: =IF(SUM(C$15:C198)>=$B$8," ",$HG199) -> 185 | C199: =IF(ISNUMBER(B199),IF(ROUND($B$10,0)=B199,1,IF(B199>ROUND($B$10,1),IF(B199=INT($B$10+SUM($C$14:C198)*$B$9),1,""),"")),"") ->  | HG199: 185 | HL199: 185
B200: =IF(SUM(C$15:C199)>=$B$8," ",$HG200) -> 186 | C200: =IF(ISNUMBER(B200),IF(ROUND($B$10,0)=B200,1,IF(B200>ROUND($B$10,1),IF(B200=INT($B$10+SUM($C$14:C199)*$B$9),1,""),"")),"") -> 1 | HG200: 186 | HL200: 186
B201: =IF(SUM(C$15:C200)>=$B$8," ",$HG201) -> 187 | C201: =IF(ISNUMBER(B201),IF(ROUND($B$10,0)=B201,1,IF(B201>ROUND($B$10,1),IF(B201=INT($B$10+SUM($C$14:C200)*$B$9),1,""),"")),"") -> 1 | HG201: 187 | HL201: 187
B202: =IF(SUM(C$15:C201)>=$B$8," ",$HG202) -> 188 | C202: =IF(ISNUMBER(B202),IF(ROUND($B$10,0)=B202,1,IF(B202>ROUND($B$10,1),IF(B202=INT($B$10+SUM($C$14:C201)*$B$9),1,""),"")),"") ->  | HG202: 188 | HL202: 188
B203: =IF(SUM(C$15:C202)>=$B$8," ",$HG203) -> 189 | C203: =IF(ISNUMBER(B203),IF(ROUND($B$10,0)=B203,1,IF(B203>ROUND($B$10,1),IF(B203=INT($B$10+SUM($C$14:C202)*$B$9),1,""),"")),"") -> 1 | HG203: 189 | HL203: 189
B204: =IF(SUM(C$15:C203)>=$B$8," ",$HG204) -> 190 | C204: =IF(ISNUMBER(B204),IF(ROUND($B$10,0)=B204,1,IF(B204>ROUND($B$10,1),IF(B204=INT($B$10+SUM($C$14:C203)*$B$9),1,""),"")),"") -> 1 | HG204: 190 | HL204: 190
... 358 more rows

Sheet Selecting the Sample-more
A1: Selecting Your Sample - Surveying more than the Minimum Requirement
A3: This sheet is automatically populated based on the information you have already entered in the "Sample Size Calculator". The carers you should select are given in the green table below
A5: The sheet is not protected so councils can change the font size, set print ranges etc but it should not be necessary to change any of the text, numbers or formulae on this sheet.
A7: The number of carers you are drawing your sample from (also called the "eligible population") | B7: ='Sample Size Calculator'!A21 -> 1000
A8: Sample Size - Actual number of questionnaires you need to send out | B8: ='Sample Size Calculator'!K21 -> 900
A9: Sampling interval needed if you want to select every nth carer | B9: =ROUND('Sample Size Calculator'!A21/'Sample Size Calculator'!K21,2) -> 1.11
A10: Random Start | B10: =CEILING(B$11*B9,1) -> 1
B11: 0.8936035314
B13: The record that should be selected from your eligible population of carers
B14: Elig Pop Number | C14: Flag
B15: 1 | C15: =IF(ISNUMBER(B15),IF(ROUND($B$10,0)=B15,1,IF(B15>ROUND($B$10,1),IF(B15=INT($B$10+SUM($C$14:C14)*$B$9),1,""),"")),"") -> 1 | HG15: 1 | HL15: 1
B16: =IF(SUM(C$15:C15)>=$B$8," ",$HG16) -> 2 | C16: =IF(ISNUMBER(B16),IF(ROUND($B$10,0)=B16,1,IF(B16>ROUND($B$10,1),IF(B16=INT($B$10+SUM($C$14:C15)*$B$9),1,""),"")),"") -> 1 | HG16: =HG15+1 -> 2 | HL16: =HL15+1 -> 2
B17: =IF(SUM(C$15:C16)>=$B$8," ",$HG17) -> 3 | C17: =IF(ISNUMBER(B17),IF(ROUND($B$10,0)=B17,1,IF(B17>ROUND($B$10,1),IF(B17=INT($B$10+SUM($C$14:C16)*$B$9),1,""),"")),"") -> 1 | HG17: 3 | HL17: =HL16+1 -> 3
B18: =IF(SUM(C$15:C17)>=$B$8," ",$HG18) -> 4 | C18: =IF(ISNUMBER(B18),IF(ROUND($B$10,0)=B18,1,IF(B18>ROUND($B$10,1),IF(B18=INT($B$10+SUM($C$14:C17)*$B$9),1,""),"")),"") -> 1 | HG18: 4 | HL18: 4
B19: =IF(SUM(C$15:C18)>=$B$8," ",$HG19) -> 5 | C19: =IF(ISNUMBER(B19),IF(ROUND($B$10,0)=B19,1,IF(B19>ROUND($B$10,1),IF(B19=INT($B$10+SUM($C$14:C18)*$B$9),1,""),"")),"") -> 1 | HG19: 5 | HL19: 5
B20: =IF(SUM(C$15:C19)>=$B$8," ",$HG20) -> 6 | C20: =IF(ISNUMBER(B20),IF(ROUND($B$10,0)=B20,1,IF(B20>ROUND($B$10,1),IF(B20=INT($B$10+SUM($C$14:C19)*$B$9),1,""),"")),"") -> 1 | HG20: 6 | HL20: 6
B21: =IF(SUM(C$15:C20)>=$B$8," ",$HG21) -> 7 | C21: =IF(ISNUMBER(B21),IF(ROUND($B$10,0)=B21,1,IF(B21>ROUND($B$10,1),IF(B21=INT($B$10+SUM($C$14:C20)*$B$9),1,""),"")),"") -> 1 | HG21: 7 | HL21: 7
B22: =IF(SUM(C$15:C21)>=$B$8," ",$HG22) -> 8 | C22: =IF(ISNUMBER(B22),IF(ROUND($B$10,0)=B22,1,IF(B22>ROUND($B$10,1),IF(B22=INT($B$10+SUM($C$14:C21)*$B$9),1,""),"")),"") -> 1 | HG22: 8 | HL22: 8
B23: =IF(SUM(C$15:C22)>=$B$8," ",$HG23) -> 9 | C23: =IF(ISNUMBER(B23),IF(ROUND($B$10,0)=B23,1,IF(B23>ROUND($B$10,1),IF(B23=INT($B$10+SUM($C$14:C22)*$B$9),1,""),"")),"") -> 1 | HG23: 9 | HL23: 9
B24: =IF(SUM(C$15:C23)>=$B$8," ",$HG24) -> 10 | C24: =IF(ISNUMBER(B24),IF(ROUND($B$10,0)=B24,1,IF(B24>ROUND($B$10,1),IF(B24=INT($B$10+SUM($C$14:C23)*$B$9),1,""),"")),"") -> 1 | HG24: 10 | HL24: 10
B25: =IF(SUM(C$15:C24)>=$B$8," ",$HG25) -> 11 | C25: =IF(ISNUMBER(B25),IF(ROUND($B$10,0)=B25,1,IF(B25>ROUND($B$10,1),IF(B25=INT($B$10+SUM($C$14:C24)*$B$9),1,""),"")),"") ->  | HG25: 11 | HL25: 11
B26: =IF(SUM(C$15:C25)>=$B$8," ",$HG26) -> 12 | C26: =IF(ISNUMBER(B26),IF(ROUND($B$10,0)=B26,1,IF(B26>ROUND($B$10,1),IF(B26=INT($B$10+SUM($C$14:C25)*$B$9),1,""),"")),"") -> 1 | HG26: 12 | HL26: 12
B27: =IF(SUM(C$15:C26)>=$B$8," ",$HG27) -> 13 | C27: =IF(ISNUMBER(B27),IF(ROUND($B$10,0)=B27,1,IF(B27>ROUND($B$10,1),IF(B27=INT($B$10+SUM($C$14:C26)*$B$9),1,""),"")),"") -> 1 | HG27: 13 | HL27: 13
B28: =IF(SUM(C$15:C27)>=$B$8," ",$HG28) -> 14 | C28: =IF(ISNUMBER(B28),IF(ROUND($B$10,0)=B28,1,IF(B28>ROUND($B$10,1),IF(B28=INT($B$10+SUM($C$14:C27)*$B$9),1,""),"")),"") -> 1 | HG28: 14 | HL28: 14
B29: =IF(SUM(C$15:C28)>=$B$8," ",$HG29) -> 15 | C29: =IF(ISNUMBER(B29),IF(ROUND($B$10,0)=B29,1,IF(B29>ROUND($B$10,1),IF(B29=INT($B$10+SUM($C$14:C28)*$B$9),1,""),"")),"") -> 1 | HG29: 15 | HL29: 15
B30: =IF(SUM(C$15:C29)>=$B$8," ",$HG30) -> 16 | C30: =IF(ISNUMBER(B30),IF(ROUND($B$10,0)=B30,1,IF(B30>ROUND($B$10,1),IF(B30=INT($B$10+SUM($C$14:C29)*$B$9),1,""),"")),"") -> 1 | HG30: 16 | HL30: 16
B31: =IF(SUM(C$15:C30)>=$B$8," ",$HG31) -> 17 | C31: =IF(ISNUMBER(B31),IF(ROUND($B$10,0)=B31,1,IF(B31>ROUND($B$10,1),IF(B31=INT($B$10+SUM($C$14:C30)*$B$9),1,""),"")),"") -> 1 | HG31: 17 | HL31: 17
B32: =IF(SUM(C$15:C31)>=$B$8," ",$HG32) -> 18 | C32: =IF(ISNUMBER(B32),IF(ROUND($B$10,0)=B32,1,IF(B32>ROUND($B$10,1),IF(B32=INT($B$10+SUM($C$14:C31)*$B$9),1,""),"")),"") -> 1 | HG32: 18 | HL32: 18
B33: =IF(SUM(C$15:C32)>=$B$8," ",$HG33) -> 19 | C33: =IF(ISNUMBER(B33),IF(ROUND($B$10,0)=B33,1,IF(B33>ROUND($B$10,1),IF(B33=INT($B$10+SUM($C$14:C32)*$B$9),1,""),"")),"") -> 1 | HG33: 19 | HL33: 19
B34: =IF(SUM(C$15:C33)>=$B$8," ",$HG34) -> 20 | C34: =IF(ISNUMBER(B34),IF(ROUND($B$10,0)=B34,1,IF(B34>ROUND($B$10,1),IF(B34=INT($B$10+SUM($C$14:C33)*$B$9),1,""),"")),"") -> 1 | HG34: 20 | HL34: 20
B35: =IF(SUM(C$15:C34)>=$B$8," ",$HG35) -> 21 | C35: =IF(ISNUMBER(B35),IF(ROUND($B$10,0)=B35,1,IF(B35>ROUND($B$10,1),IF(B35=INT($B$10+SUM($C$14:C34)*$B$9),1,""),"")),"") ->  | HG35: 21 | HL35: 21
B36: =IF(SUM(C$15:C35)>=$B$8," ",$HG36) -> 22 | C36: =IF(ISNUMBER(B36),IF(ROUND($B$10,0)=B36,1,IF(B36>ROUND($B$10,1),IF(B36=INT($B$10+SUM($C$14:C35)*$B$9),1,""),"")),"") -> 1 | HG36: 22 | HL36: 22
B37: =IF(SUM(C$15:C36)>=$B$8," ",$HG37) -> 23 | C37: =IF(ISNUMBER(B37),IF(ROUND($B$10,0)=B37,1,IF(B37>ROUND($B$10,1),IF(B37=INT($B$10+SUM($C$14:C36)*$B$9),1,""),"")),"") -> 1 | HG37: 23 | HL37: 23
B38: =IF(SUM(C$15:C37)>=$B$8," ",$HG38) -> 24 | C38: =IF(ISNUMBER(B38),IF(ROUND($B$10,0)=B38,1,IF(B38>ROUND($B$10,1),IF(B38=INT($B$10+SUM($C$14:C37)*$B$9),1,""),"")),"") -> 1 | HG38: 24 | HL38: 24
B39: =IF(SUM(C$15:C38)>=$B$8," ",$HG39) -> 25 | C39: =IF(ISNUMBER(B39),IF(ROUND($B$10,0)=B39,1,IF(B39>ROUND($B$10,1),IF(B39=INT($B$10+SUM($C$14:C38)*$B$9),1,""),"")),"") -> 1 | HG39: 25 | HL39: 25
B40: =IF(SUM(C$15:C39)>=$B$8," ",$HG40) -> 26 | C40: =IF(ISNUMBER(B40),IF(ROUND($B$10,0)=B40,1,IF(B40>ROUND($B$10,1),IF(B40=INT($B$10+SUM($C$14:C39)*$B$9),1,""),"")),"") -> 1 | HG40: 26 | HL40: 26
B41: =IF(SUM(C$15:C40)>=$B$8," ",$HG41) -> 27 | C41: =IF(ISNUMBER(B41),IF(ROUND($B$10,0)=B41,1,IF(B41>ROUND($B$10,1),IF(B41=INT($B$10+SUM($C$14:C40)*$B$9),1,""),"")),"") -> 1 | HG41: 27 | HL41: 27
B42: =IF(SUM(C$15:C41)>=$B$8," ",$HG42) -> 28 | C42: =IF(ISNUMBER(B42),IF(ROUND($B$10,0)=B42,1,IF(B42>ROUND($B$10,1),IF(B42=INT($B$10+SUM($C$14:C41)*$B$9),1,""),"")),"") -> 1 | HG42: 28 | HL42: 28
B43: =IF(SUM(C$15:C42)>=$B$8," ",$HG43) -> 29 | C43: =IF(ISNUMBER(B43),IF(ROUND($B$10,0)=B43,1,IF(B43>ROUND($B$10,1),IF(B43=INT($B$10+SUM($C$14:C42)*$B$9),1,""),"")),"") -> 1 | HG43: 29 | HL43: 29
B44: =IF(SUM(C$15:C43)>=$B$8," ",$HG44) -> 30 | C44: =IF(ISNUMBER(B44),IF(ROUND($B$10,0)=B44,1,IF(B44>ROUND($B$10,1),IF(B44=INT($B$10+SUM($C$14:C43)*$B$9),1,""),"")),"") -> 1 | HG44: 30 | HL44: 30
B45: =IF(SUM(C$15:C44)>=$B$8," ",$HG45) -> 31 | C45: =IF(ISNUMBER(B45),IF(ROUND($B$10,0)=B45,1,IF(B45>ROUND($B$10,1),IF(B45=INT($B$10+SUM($C$14:C44)*$B$9),1,""),"")),"") ->  | HG45: 31 | HL45: 31
B46: =IF(SUM(C$15:C45)>=$B$8," ",$HG46) -> 32 | C46: =IF(ISNUMBER(B46),IF(ROUND($B$10,0)=B46,1,IF(B46>ROUND($B$10,1),IF(B46=INT($B$10+SUM($C$14:C45)*$B$9),1,""),"")),"") -> 1 | HG46: 32 | HL46: 32
B47: =IF(SUM(C$15:C46)>=$B$8," ",$HG47) -> 33 | C47: =IF(ISNUMBER(B47),IF(ROUND($B$10,0)=B47,1,IF(B47>ROUND($B$10,1),IF(B47=INT($B$10+SUM($C$14:C46)*$B$9),1,""),"")),"") -> 1 | HG47: 33 | HL47: 33
B48: =IF(SUM(C$15:C47)>=$B$8," ",$HG48) -> 34 | C48: =IF(ISNUMBER(B48),IF(ROUND($B$10,0)=B48,1,IF(B48>ROUND($B$10,1),IF(B48=INT($B$10+SUM($C$14:C47)*$B$9),1,""),"")),"") -> 1 | HG48: 34 | HL48: 34
B49: =IF(SUM(C$15:C48)>=$B$8," ",$HG49) -> 35 | C49: =IF(ISNUMBER(B49),IF(ROUND($B$10,0)=B49,1,IF(B49>ROUND($B$10,1),IF(B49=INT($B$10+SUM($C$14:C48)*$B$9),1,""),"")),"") -> 1 | HG49: 35 | HL49: 35
B50: =IF(SUM(C$15:C49)>=$B$8," ",$HG50) -> 36 | C50: =IF(ISNUMBER(B50),IF(ROUND($B$10,0)=B50,1,IF(B50>ROUND($B$10,1),IF(B50=INT($B$10+SUM($C$14:C49)*$B$9),1,""),"")),"") -> 1 | HG50: 36 | HL50: 36
B51: =IF(SUM(C$15:C50)>=$B$8," ",$HG51) -> 37 | C51: =IF(ISNUMBER(B51),IF(ROUND($B$10,0)=B51,1,IF(B51>ROUND($B$10,1),IF(B51=INT($B$10+SUM($C$14:C50)*$B$9),1,""),"")),"") -> 1 | HG51: 37 | HL51: 37
B52: =IF(SUM(C$15:C51)>=$B$8," ",$HG52) -> 38 | C52: =IF(ISNUMBER(B52),IF(ROUND($B$10,0)=B52,1,IF(B52>ROUND($B$10,1),IF(B52=INT($B$10+SUM($C$14:C51)*$B$9),1,""),"")),"") -> 1 | HG52: 38 | HL52: 38
B53: =IF(SUM(C$15:C52)>=$B$8," ",$HG53) -> 39 | C53: =IF(ISNUMBER(B53),IF(ROUND($B$10,0)=B53,1,IF(B53>ROUND($B$10,1),IF(B53=INT($B$10+SUM($C$14:C52)*$B$9),1,""),"")),"") -> 1 | HG53: 39 | HL53: 39
B54: =IF(SUM(C$15:C53)>=$B$8," ",$HG54) -> 40 | C54: =IF(ISNUMBER(B54),IF(ROUND($B$10,0)=B54,1,IF(B54>ROUND($B$10,1),IF(B54=INT($B$10+SUM($C$14:C53)*$B$9),1,""),"")),"") -> 1 | HG54: 40 | HL54: 40
B55: =IF(SUM(C$15:C54)>=$B$8," ",$HG55) -> 41 | C55: =IF(ISNUMBER(B55),IF(ROUND($B$10,0)=B55,1,IF(B55>ROUND($B$10,1),IF(B55=INT($B$10+SUM($C$14:C54)*$B$9),1,""),"")),"") ->  | HG55: 41 | HL55: 41
B56: =IF(SUM(C$15:C55)>=$B$8," ",$HG56) -> 42 | C56: =IF(ISNUMBER(B56),IF(ROUND($B$10,0)=B56,1,IF(B56>ROUND($B$10,1),IF(B56=INT($B$10+SUM($C$14:C55)*$B$9),1,""),"")),"") -> 1 | HG56: 42 | HL56: 42
B57: =IF(SUM(C$15:C56)>=$B$8," ",$HG57) -> 43 | C57: =IF(ISNUMBER(B57),IF(ROUND($B$10,0)=B57,1,IF(B57>ROUND($B$10,1),IF(B57=INT($B$10+SUM($C$14:C56)*$B$9),1,""),"")),"") -> 1 | HG57: 43 | HL57: 43
B58: =IF(SUM(C$15:C57)>=$B$8," ",$HG58) -> 44 | C58: =IF(ISNUMBER(B58),IF(ROUND($B$10,0)=B58,1,IF(B58>ROUND($B$10,1),IF(B58=INT($B$10+SUM($C$14:C57)*$B$9),1,""),"")),"") -> 1 | HG58: 44 | HL58: 44
B59: =IF(SUM(C$15:C58)>=$B$8," ",$HG59) -> 45 | C59: =IF(ISNUMBER(B59),IF(ROUND($B$10,0)=B59,1,IF(B59>ROUND($B$10,1),IF(B59=INT($B$10+SUM($C$14:C58)*$B$9),1,""),"")),"") -> 1 | HG59: 45 | HL59: 45
B60: =IF(SUM(C$15:C59)>=$B$8," ",$HG60) -> 46 | C60: =IF(ISNUMBER(B60),IF(ROUND($B$10,0)=B60,1,IF(B60>ROUND($B$10,1),IF(B60=INT($B$10+SUM($C$14:C59)*$B$9),1,""),"")),"") -> 1 | HG60: 46 | HL60: 46
B61: =IF(SUM(C$15:C60)>=$B$8," ",$HG61) -> 47 | C61: =IF(ISNUMBER(B61),IF(ROUND($B$10,0)=B61,1,IF(B61>ROUND($B$10,1),IF(B61=INT($B$10+SUM($C$14:C60)*$B$9),1,""),"")),"") -> 1 | HG61: 47 | HL61: 47
B62: =IF(SUM(C$15:C61)>=$B$8," ",$HG62) -> 48 | C62: =IF(ISNUMBER(B62),IF(ROUND($B$10,0)=B62,1,IF(B62>ROUND($B$10,1),IF(B62=INT($B$10+SUM($C$14:C61)*$B$9),1,""),"")),"") -> 1 | HG62: 48 | HL62: 48
B63: =IF(SUM(C$15:C62)>=$B$8," ",$HG63) -> 49 | C63: =IF(ISNUMBER(B63),IF(ROUND($B$10,0)=B63,1,IF(B63>ROUND($B$10,1),IF(B63=INT($B$10+SUM($C$14:C62)*$B$9),1,""),"")),"") -> 1 | HG63: 49 | HL63: 49
B64: =IF(SUM(C$15:C63)>=$B$8," ",$HG64) -> 50 | C64: =IF(ISNUMBER(B64),IF(ROUND($B$10,0)=B64,1,IF(B64>ROUND($B$10,1),IF(B64=INT($B$10+SUM($C$14:C63)*$B$9),1,""),"")),"") -> 1 | HG64: 50 | HL64: 50
B65: =IF(SUM(C$15:C64)>=$B$8," ",$HG65) -> 51 | C65: =IF(ISNUMBER(B65),IF(ROUND($B$10,0)=B65,1,IF(B65>ROUND($B$10,1),IF(B65=INT($B$10+SUM($C$14:C64)*$B$9),1,""),"")),"") ->  | HG65: 51 | HL65: 51
B66: =IF(SUM(C$15:C65)>=$B$8," ",$HG66) -> 52 | C66: =IF(ISNUMBER(B66),IF(ROUND($B$10,0)=B66,1,IF(B66>ROUND($B$10,1),IF(B66=INT($B$10+SUM($C$14:C65)*$B$9),1,""),"")),"") -> 1 | HG66: 52 | HL66: 52
B67: =IF(SUM(C$15:C66)>=$B$8," ",$HG67) -> 53 | C67: =IF(ISNUMBER(B67),IF(ROUND($B$10,0)=B67,1,IF(B67>ROUND($B$10,1),IF(B67=INT($B$10+SUM($C$14:C66)*$B$9),1,""),"")),"") -> 1 | HG67: 53 | HL67: 53
B68: =IF(SUM(C$15:C67)>=$B$8," ",$HG68) -> 54 | C68: =IF(ISNUMBER(B68),IF(ROUND($B$10,0)=B68,1,IF(B68>ROUND($B$10,1),IF(B68=INT($B$10+SUM($C$14:C67)*$B$9),1,""),"")),"") -> 1 | HG68: 54 | HL68: 54
B69: =IF(SUM(C$15:C68)>=$B$8," ",$HG69) -> 55 | C69: =IF(ISNUMBER(B69),IF(ROUND($B$10,0)=B69,1,IF(B69>ROUND($B$10,1),IF(B69=INT($B$10+SUM($C$14:C68)*$B$9),1,""),"")),"") -> 1 | HG69: 55 | HL69: 55
B70: =IF(SUM(C$15:C69)>=$B$8," ",$HG70) -> 56 | C70: =IF(ISNUMBER(B70),IF(ROUND($B$10,0)=B70,1,IF(B70>ROUND($B$10,1),IF(B70=INT($B$10+SUM($C$14:C69)*$B$9),1,""),"")),"") -> 1 | HG70: 56 | HL70: 56
B71: =IF(SUM(C$15:C70)>=$B$8," ",$HG71) -> 57 | C71: =IF(ISNUMBER(B71),IF(ROUND($B$10,0)=B71,1,IF(B71>ROUND($B$10,1),IF(B71=INT($B$10+SUM($C$14:C70)*$B$9),1,""),"")),"") -> 1 | HG71: 57 | HL71: 57
B72: =IF(SUM(C$15:C71)>=$B$8," ",$HG72) -> 58 | C72: =IF(ISNUMBER(B72),IF(ROUND($B$10,0)=B72,1,IF(B72>ROUND($B$10,1),IF(B72=INT($B$10+SUM($C$14:C71)*$B$9),1,""),"")),"") -> 1 | HG72: 58 | HL72: 58
B73: =IF(SUM(C$15:C72)>=$B$8," ",$HG73) -> 59 | C73: =IF(ISNUMBER(B73),IF(ROUND($B$10,0)=B73,1,IF(B73>ROUND($B$10,1),IF(B73=INT($B$10+SUM($C$14:C72)*$B$9),1,""),"")),"") -> 1 | HG73: 59 | HL73: 59
B74: =IF(SUM(C$15:C73)>=$B$8," ",$HG74) -> 60 | C74: =IF(ISNUMBER(B74),IF(ROUND($B$10,0)=B74,1,IF(B74>ROUND($B$10,1),IF(B74=INT($B$10+SUM($C$14:C73)*$B$9),1,""),"")),"") -> 1 | HG74: 60 | HL74: 60
B75: =IF(SUM(C$15:C74)>=$B$8," ",$HG75) -> 61 | C75: =IF(ISNUMBER(B75),IF(ROUND($B$10,0)=B75,1,IF(B75>ROUND($B$10,1),IF(B75=INT($B$10+SUM($C$14:C74)*$B$9),1,""),"")),"") ->  | HG75: 61 | HL75: 61
B76: =IF(SUM(C$15:C75)>=$B$8," ",$HG76) -> 62 | C76: =IF(ISNUMBER(B76),IF(ROUND($B$10,0)=B76,1,IF(B76>ROUND($B$10,1),IF(B76=INT($B$10+SUM($C$14:C75)*$B$9),1,""),"")),"") -> 1 | HG76: 62 | HL76: 62
B77: =IF(SUM(C$15:C76)>=$B$8," ",$HG77) -> 63 | C77: =IF(ISNUMBER(B77),IF(ROUND($B$10,0)=B77,1,IF(B77>ROUND($B$10,1),IF(B77=INT($B$10+SUM($C$14:C76)*$B$9),1,""),"")),"") -> 1 | HG77: =HG76+1 -> 63 | HL77: 63
B78: =IF(SUM(C$15:C77)>=$B$8," ",$HG78) -> 64 | C78: =IF(ISNUMBER(B78),IF(ROUND($B$10,0)=B78,1,IF(B78>ROUND($B$10,1),IF(B78=INT($B$10+SUM($C$14:C77)*$B$9),1,""),"")),"") -> 1 | HG78: 64 | HL78: 64
B79: =IF(SUM(C$15:C78)>=$B$8," ",$HG79) -> 65 | C79: =IF(ISNUMBER(B79),IF(ROUND($B$10,0)=B79,1,IF(B79>ROUND($B$10,1),IF(B79=INT($B$10+SUM($C$14:C78)*$B$9),1,""),"")),"") -> 1 | HG79: 65 | HL79: 65
B80: =IF(SUM(C$15:C79)>=$B$8," ",$HG80) -> 66 | C80: =IF(ISNUMBER(B80),IF(ROUND($B$10,0)=B80,1,IF(B80>ROUND($B$10,1),IF(B80=INT($B$10+SUM($C$14:C79)*$B$9),1,""),"")),"") -> 1 | HG80: 66 | HL80: 66
B81: =IF(SUM(C$15:C80)>=$B$8," ",$HG81) -> 67 | C81: =IF(ISNUMBER(B81),IF(ROUND($B$10,0)=B81,1,IF(B81>ROUND($B$10,1),IF(B81=INT($B$10+SUM($C$14:C80)*$B$9),1,""),"")),"") -> 1 | HG81: 67 | HL81: =HL80+1 -> 67
B82: =IF(SUM(C$15:C81)>=$B$8," ",$HG82) -> 68 | C82: =IF(ISNUMBER(B82),IF(ROUND($B$10,0)=B82,1,IF(B82>ROUND($B$10,1),IF(B82=INT($B$10+SUM($C$14:C81)*$B$9),1,""),"")),"") -> 1 | HG82: 68 | HL82: 68
B83: =IF(SUM(C$15:C82)>=$B$8," ",$HG83) -> 69 | C83: =IF(ISNUMBER(B83),IF(ROUND($B$10,0)=B83,1,IF(B83>ROUND($B$10,1),IF(B83=INT($B$10+SUM($C$14:C82)*$B$9),1,""),"")),"") -> 1 | HG83: 69 | HL83: 69
B84: =IF(SUM(C$15:C83)>=$B$8," ",$HG84) -> 70 | C84: =IF(ISNUMBER(B84),IF(ROUND($B$10,0)=B84,1,IF(B84>ROUND($B$10,1),IF(B84=INT($B$10+SUM($C$14:C83)*$B$9),1,""),"")),"") -> 1 | HG84: 70 | HL84: 70
B85: =IF(SUM(C$15:C84)>=$B$8," ",$HG85) -> 71 | C85: =IF(ISNUMBER(B85),IF(ROUND($B$10,0)=B85,1,IF(B85>ROUND($B$10,1),IF(B85=INT($B$10+SUM($C$14:C84)*$B$9),1,""),"")),"") ->  | HG85: 71 | HL85: 71
B86: =IF(SUM(C$15:C85)>=$B$8," ",$HG86) -> 72 | C86: =IF(ISNUMBER(B86),IF(ROUND($B$10,0)=B86,1,IF(B86>ROUND($B$10,1),IF(B86=INT($B$10+SUM($C$14:C85)*$B$9),1,""),"")),"") -> 1 | HG86: 72 | HL86: 72
B87: =IF(SUM(C$15:C86)>=$B$8," ",$HG87) -> 73 | C87: =IF(ISNUMBER(B87),IF(ROUND($B$10,0)=B87,1,IF(B87>ROUND($B$10,1),IF(B87=INT($B$10+SUM($C$14:C86)*$B$9),1,""),"")),"") -> 1 | HG87: 73 | HL87: 73
B88: =IF(SUM(C$15:C87)>=$B$8," ",$HG88) -> 74 | C88: =IF(ISNUMBER(B88),IF(ROUND($B$10,0)=B88,1,IF(B88>ROUND($B$10,1),IF(B88=INT($B$10+SUM($C$14:C87)*$B$9),1,""),"")),"") -> 1 | HG88: 74 | HL88: 74
B89: =IF(SUM(C$15:C88)>=$B$8," ",$HG89) -> 75 | C89: =IF(ISNUMBER(B89),IF(ROUND($B$10,0)=B89,1,IF(B89>ROUND($B$10,1),IF(B89=INT($B$10+SUM($C$14:C88)*$B$9),1,""),"")),"") -> 1 | HG89: 75 | HL89: 75
B90: =IF(SUM(C$15:C89)>=$B$8," ",$HG90) -> 76 | C90: =IF(ISNUMBER(B90),IF(ROUND($B$10,0)=B90,1,IF(B90>ROUND($B$10,1),IF(B90=INT($B$10+SUM($C$14:C89)*$B$9),1,""),"")),"") -> 1 | HG90: 76 | HL90: 76
B91: =IF(SUM(C$15:C90)>=$B$8," ",$HG91) -> 77 | C91: =IF(ISNUMBER(B91),IF(ROUND($B$10,0)=B91,1,IF(B91>ROUND($B$10,1),IF(B91=INT($B$10+SUM($C$14:C90)*$B$9),1,""),"")),"") -> 1 | HG91: 77 | HL91: 77
B92: =IF(SUM(C$15:C91)>=$B$8," ",$HG92) -> 78 | C92: =IF(ISNUMBER(B92),IF(ROUND($B$10,0)=B92,1,IF(B92>ROUND($B$10,1),IF(B92=INT($B$10+SUM($C$14:C91)*$B$9),1,""),"")),"") -> 1 | HG92: 78 | HL92: 78
B93: =IF(SUM(C$15:C92)>=$B$8," ",$HG93) -> 79 | C93: =IF(ISNUMBER(B93),IF(ROUND($B$10,0)=B93,1,IF(B93>ROUND($B$10,1),IF(B93=INT($B$10+SUM($C$14:C92)*$B$9),1,""),"")),"") -> 1 | HG93: 79 | HL93: 79
B94: =IF(SUM(C$15:C93)>=$B$8," ",$HG94) -> 80 | C94: =IF(ISNUMBER(B94),IF(ROUND($B$10,0)=B94,1,IF(B94>ROUND($B$10,1),IF(B94=INT($B$10+SUM($C$14:C93)*$B$9),1,""),"")),"") -> 1 | HG94: 80 | HL94: 80
B95: =IF(SUM(C$15:C94)>=$B$8," ",$HG95) -> 81 | C95: =IF(ISNUMBER(B95),IF(ROUND($B$10,0)=B95,1,IF(B95>ROUND($B$10,1),IF(B95=INT($B$10+SUM($C$14:C94)*$B$9),1,""),"")),"") ->  | HG95: 81 | HL95: 81
B96: =IF(SUM(C$15:C95)>=$B$8," ",$HG96) -> 82 | C96: =IF(ISNUMBER(B96),IF(ROUND($B$10,0)=B96,1,IF(B96>ROUND($B$10,1),IF(B96=INT($B$10+SUM($C$14:C95)*$B$9),1,""),"")),"") -> 1 | HG96: 82 | HL96: 82
B97: =IF(SUM(C$15:C96)>=$B$8," ",$HG97) -> 83 | C97: =IF(ISNUMBER(B97),IF(ROUND($B$10,0)=B97,1,IF(B97>ROUND($B$10,1),IF(B97=INT($B$10+SUM($C$14:C96)*$B$9),1,""),"")),"") -> 1 | HG97: 83 | HL97: 83
B98: =IF(SUM(C$15:C97)>=$B$8," ",$HG98) -> 84 | C98: =IF(ISNUMBER(B98),IF(ROUND($B$10,0)=B98,1,IF(B98>ROUND($B$10,1),IF(B98=INT($B$10+SUM($C$14:C97)*$B$9),1,""),"")),"") -> 1 | HG98: 84 | HL98: 84
B99: =IF(SUM(C$15:C98)>=$B$8," ",$HG99) -> 85 | C99: =IF(ISNUMBER(B99),IF(ROUND($B$10,0)=B99,1,IF(B99>ROUND($B$10,1),IF(B99=INT($B$10+SUM($C$14:C98)*$B$9),1,""),"")),"") -> 1 | HG99: 85 | HL99: 85
B100: =IF(SUM(C$15:C99)>=$B$8," ",$HG100) -> 86 | C100: =IF(ISNUMBER(B100),IF(ROUND($B$10,0)=B100,1,IF(B100>ROUND($B$10,1),IF(B100=INT($B$10+SUM($C$14:C99)*$B$9),1,""),"")),"") -> 1 | HG100: 86 | HL100: 86
B101: =IF(SUM(C$15:C100)>=$B$8," ",$HG101) -> 87 | C101: =IF(ISNUMBER(B101),IF(ROUND($B$10,0)=B101,1,IF(B101>ROUND($B$10,1),IF(B101=INT($B$10+SUM($C$14:C100)*$B$9),1,""),"")),"") -> 1 | HG101: 87 | HL101: 87
B102: =IF(SUM(C$15:C101)>=$B$8," ",$HG102) -> 88 | C102: =IF(ISNUMBER(B102),IF(ROUND($B$10,0)=B102,1,IF(B102>ROUND($B$10,1),IF(B102=INT($B$10+SUM($C$14:C101)*$B$9),1,""),"")),"") -> 1 | HG102: 88 | HL102: 88
B103: =IF(SUM(C$15:C102)>=$B$8," ",$HG103) -> 89 | C103: =IF(ISNUMBER(B103),IF(ROUND($B$10,0)=B103,1,IF(B103>ROUND($B$10,1),IF(B103=INT($B$10+SUM($C$14:C102)*$B$9),1,""),"")),"") -> 1 | HG103: 89 | HL103: 89
B104: =IF(SUM(C$15:C103)>=$B$8," ",$HG104) -> 90 | C104: =IF(ISNUMBER(B104),IF(ROUND($B$10,0)=B104,1,IF(B104>ROUND($B$10,1),IF(B104=INT($B$10+SUM($C$14:C103)*$B$9),1,""),"")),"") -> 1 | HG104: 90 | HL104: 90
B105: =IF(SUM(C$15:C104)>=$B$8," ",$HG105) -> 91 | C105: =IF(ISNUMBER(B105),IF(ROUND($B$10,0)=B105,1,IF(B105>ROUND($B$10,1),IF(B105=INT($B$10+SUM($C$14:C104)*$B$9),1,""),"")),"") ->  | HG105: 91 | HL105: 91
B106: =IF(SUM(C$15:C105)>=$B$8," ",$HG106) -> 92 | C106: =IF(ISNUMBER(B106),IF(ROUND($B$10,0)=B106,1,IF(B106>ROUND($B$10,1),IF(B106=INT($B$10+SUM($C$14:C105)*$B$9),1,""),"")),"") -> 1 | HG106: 92 | HL106: 92
B107: =IF(SUM(C$15:C106)>=$B$8," ",$HG107) -> 93 | C107: =IF(ISNUMBER(B107),IF(ROUND($B$10,0)=B107,1,IF(B107>ROUND($B$10,1),IF(B107=INT($B$10+SUM($C$14:C106)*$B$9),1,""),"")),"") -> 1 | HG107: 93 | HL107: 93
B108: =IF(SUM(C$15:C107)>=$B$8," ",$HG108) -> 94 | C108: =IF(ISNUMBER(B108),IF(ROUND($B$10,0)=B108,1,IF(B108>ROUND($B$10,1),IF(B108=INT($B$10+SUM($C$14:C107)*$B$9),1,""),"")),"") -> 1 | HG108: 94 | HL108: 94
B109: =IF(SUM(C$15:C108)>=$B$8," ",$HG109) -> 95 | C109: =IF(ISNUMBER(B109),IF(ROUND($B$10,0)=B109,1,IF(B109>ROUND($B$10,1),IF(B109=INT($B$10+SUM($C$14:C108)*$B$9),1,""),"")),"") -> 1 | HG109: 95 | HL109: 95
B110: =IF(SUM(C$15:C109)>=$B$8," ",$HG110) -> 96 | C110: =IF(ISNUMBER(B110),IF(ROUND($B$10,0)=B110,1,IF(B110>ROUND($B$10,1),IF(B110=INT($B$10+SUM($C$14:C109)*$B$9),1,""),"")),"") -> 1 | HG110: 96 | HL110: 96
B111: =IF(SUM(C$15:C110)>=$B$8," ",$HG111) -> 97 | C111: =IF(ISNUMBER(B111),IF(ROUND($B$10,0)=B111,1,IF(B111>ROUND($B$10,1),IF(B111=INT($B$10+SUM($C$14:C110)*$B$9),1,""),"")),"") -> 1 | HG111: 97 | HL111: 97
B112: =IF(SUM(C$15:C111)>=$B$8," ",$HG112) -> 98 | C112: =IF(ISNUMBER(B112),IF(ROUND($B$10,0)=B112,1,IF(B112>ROUND($B$10,1),IF(B112=INT($B$10+SUM($C$14:C111)*$B$9),1,""),"")),"") -> 1 | HG112: 98 | HL112: 98
B113: =IF(SUM(C$15:C112)>=$B$8," ",$HG113) -> 99 | C113: =IF(ISNUMBER(B113),IF(ROUND($B$10,0)=B113,1,IF(B113>ROUND($B$10,1),IF(B113=INT($B$10+SUM($C$14:C112)*$B$9),1,""),"")),"") -> 1 | HG113: 99 | HL113: 99
B114: =IF(SUM(C$15:C113)>=$B$8," ",$HG114) -> 100 | C114: =IF(ISNUMBER(B114),IF(ROUND($B$10,0)=B114,1,IF(B114>ROUND($B$10,1),IF(B114=INT($B$10+SUM($C$14:C113)*$B$9),1,""),"")),"") -> 1 | HG114: 100 | HL114: 100
B115: =IF(SUM(C$15:C114)>=$B$8," ",$HG115) -> 101 | C115: =IF(ISNUMBER(B115),IF(ROUND($B$10,0)=B115,1,IF(B115>ROUND($B$10,1),IF(B115=INT($B$10+SUM($C$14:C114)*$B$9),1,""),"")),"") ->  | HG115: 101 | HL115: 101
B116: =IF(SUM(C$15:C115)>=$B$8," ",$HG116) -> 102 | C116: =IF(ISNUMBER(B116),IF(ROUND($B$10,0)=B116,1,IF(B116>ROUND($B$10,1),IF(B116=INT($B$10+SUM($C$14:C115)*$B$9),1,""),"")),"") -> 1 | HG116: 102 | HL116: 102
B117: =IF(SUM(C$15:C116)>=$B$8," ",$HG117) -> 103 | C117: =IF(ISNUMBER(B117),IF(ROUND($B$10,0)=B117,1,IF(B117>ROUND($B$10,1),IF(B117=INT($B$10+SUM($C$14:C116)*$B$9),1,""),"")),"") -> 1 | HG117: 103 | HL117: 103
B118: =IF(SUM(C$15:C117)>=$B$8," ",$HG118) -> 104 | C118: =IF(ISNUMBER(B118),IF(ROUND($B$10,0)=B118,1,IF(B118>ROUND($B$10,1),IF(B118=INT($B$10+SUM($C$14:C117)*$B$9),1,""),"")),"") -> 1 | HG118: 104 | HL118: 104
B119: =IF(SUM(C$15:C118)>=$B$8," ",$HG119) -> 105 | C119: =IF(ISNUMBER(B119),IF(ROUND($B$10,0)=B119,1,IF(B119>ROUND($B$10,1),IF(B119=INT($B$10+SUM($C$14:C118)*$B$9),1,""),"")),"") -> 1 | HG119: 105 | HL119: 105
B120: =IF(SUM(C$15:C119)>=$B$8," ",$HG120) -> 106 | C120: =IF(ISNUMBER(B120),IF(ROUND($B$10,0)=B120,1,IF(B120>ROUND($B$10,1),IF(B120=INT($B$10+SUM($C$14:C119)*$B$9),1,""),"")),"") -> 1 | HG120: 106 | HL120: 106
B121: =IF(SUM(C$15:C120)>=$B$8," ",$HG121) -> 107 | C121: =IF(ISNUMBER(B121),IF(ROUND($B$10,0)=B121,1,IF(B121>ROUND($B$10,1),IF(B121=INT($B$10+SUM($C$14:C120)*$B$9),1,""),"")),"") -> 1 | HG121: 107 | HL121: 107
B122: =IF(SUM(C$15:C121)>=$B$8," ",$HG122) -> 108 | C122: =IF(ISNUMBER(B122),IF(ROUND($B$10,0)=B122,1,IF(B122>ROUND($B$10,1),IF(B122=INT($B$10+SUM($C$14:C121)*$B$9),1,""),"")),"") -> 1 | HG122: 108 | HL122: 108
B123: =IF(SUM(C$15:C122)>=$B$8," ",$HG123) -> 109 | C123: =IF(ISNUMBER(B123),IF(ROUND($B$10,0)=B123,1,IF(B123>ROUND($B$10,1),IF(B123=INT($B$10+SUM($C$14:C122)*$B$9),1,""),"")),"") -> 1 | HG123: 109 | HL123: 109
B124: =IF(SUM(C$15:C123)>=$B$8," ",$HG124) -> 110 | C124: =IF(ISNUMBER(B124),IF(ROUND($B$10,0)=B124,1,IF(B124>ROUND($B$10,1),IF(B124=INT($B$10+SUM($C$14:C123)*$B$9),1,""),"")),"") -> 1 | HG124: 110 | HL124: 110
B125: =IF(SUM(C$15:C124)>=$B$8," ",$HG125) -> 111 | C125: =IF(ISNUMBER(B125),IF(ROUND($B$10,0)=B125,1,IF(B125>ROUND($B$10,1),IF(B125=INT($B$10+SUM($C$14:C124)*$B$9),1,""),"")),"") ->  | HG125: 111 | HL125: 111
B126: =IF(SUM(C$15:C125)>=$B$8," ",$HG126) -> 112 | C126: =IF(ISNUMBER(B126),IF(ROUND($B$10,0)=B126,1,IF(B126>ROUND($B$10,1),IF(B126=INT($B$10+SUM($C$14:C125)*$B$9),1,""),"")),"") -> 1 | HG126: 112 | HL126: 112
B127: =IF(SUM(C$15:C126)>=$B$8," ",$HG127) -> 113 | C127: =IF(ISNUMBER(B127),IF(ROUND($B$10,0)=B127,1,IF(B127>ROUND($B$10,1),IF(B127=INT($B$10+SUM($C$14:C126)*$B$9),1,""),"")),"") -> 1 | HG127: 113 | HL127: 113
B128: =IF(SUM(C$15:C127)>=$B$8," ",$HG128) -> 114 | C128: =IF(ISNUMBER(B128),IF(ROUND($B$10,0)=B128,1,IF(B128>ROUND($B$10,1),IF(B128=INT($B$10+SUM($C$14:C127)*$B$9),1,""),"")),"") -> 1 | HG128: 114 | HL128: 114
B129: =IF(SUM(C$15:C128)>=$B$8," ",$HG129) -> 115 | C129: =IF(ISNUMBER(B129),IF(ROUND($B$10,0)=B129,1,IF(B129>ROUND($B$10,1),IF(B129=INT($B$10+SUM($C$14:C128)*$B$9),1,""),"")),"") -> 1 | HG129: 115 | HL129: 115
B130: =IF(SUM(C$15:C129)>=$B$8," ",$HG130) -> 116 | C130: =IF(ISNUMBER(B130),IF(ROUND($B$10,0)=B130,1,IF(B130>ROUND($B$10,1),IF(B130=INT($B$10+SUM($C$14:C129)*$B$9),1,""),"")),"") -> 1 | HG130: 116 | HL130: 116
B131: =IF(SUM(C$15:C130)>=$B$8," ",$HG131) -> 117 | C131: =IF(ISNUMBER(B131),IF(ROUND($B$10,0)=B131,1,IF(B131>ROUND($B$10,1),IF(B131=INT($B$10+SUM($C$14:C130)*$B$9),1,""),"")),"") -> 1 | HG131: 117 | HL131: 117
B132: =IF(SUM(C$15:C131)>=$B$8," ",$HG132) -> 118 | C132: =IF(ISNUMBER(B132),IF(ROUND($B$10,0)=B132,1,IF(B132>ROUND($B$10,1),IF(B132=INT($B$10+SUM($C$14:C131)*$B$9),1,""),"")),"") -> 1 | HG132: 118 | HL132: 118
B133: =IF(SUM(C$15:C132)>=$B$8," ",$HG133) -> 119 | C133: =IF(ISNUMBER(B133),IF(ROUND($B$10,0)=B133,1,IF(B133>ROUND($B$10,1),IF(B133=INT($B$10+SUM($C$14:C132)*$B$9),1,""),"")),"") -> 1 | HG133: 119 | HL133: 119
B134: =IF(SUM(C$15:C133)>=$B$8," ",$HG134) -> 120 | C134: =IF(ISNUMBER(B134),IF(ROUND($B$10,0)=B134,1,IF(B134>ROUND($B$10,1),IF(B134=INT($B$10+SUM($C$14:C133)*$B$9),1,""),"")),"") -> 1 | HG134: 120 | HL134: 120
B135: =IF(SUM(C$15:C134)>=$B$8," ",$HG135) -> 121 | C135: =IF(ISNUMBER(B135),IF(ROUND($B$10,0)=B135,1,IF(B135>ROUND($B$10,1),IF(B135=INT($B$10+SUM($C$14:C134)*$B$9),1,""),"")),"") -> 1 | HG135: 121 | HL135: 121
B136: =IF(SUM(C$15:C135)>=$B$8," ",$HG136) -> 122 | C136: =IF(ISNUMBER(B136),IF(ROUND($B$10,0)=B136,1,IF(B136>ROUND($B$10,1),IF(B136=INT($B$10+SUM($C$14:C135)*$B$9),1,""),"")),"") ->  | HG136: 122 | HL136: 122
B137: =IF(SUM(C$15:C136)>=$B$8," ",$HG137) -> 123 | C137: =IF(ISNUMBER(B137),IF(ROUND($B$10,0)=B137,1,IF(B137>ROUND($B$10,1),IF(B137=INT($B$10+SUM($C$14:C136)*$B$9),1,""),"")),"") -> 1 | HG137: 123 | HL137: 123
B138: =IF(SUM(C$15:C137)>=$B$8," ",$HG138) -> 124 | C138: =IF(ISNUMBER(B138),IF(ROUND($B$10,0)=B138,1,IF(B138>ROUND($B$10,1),IF(B138=INT($B$10+SUM($C$14:C137)*$B$9),1,""),"")),"") -> 1 | HG138: 124 | HL138: 124
B139: =IF(SUM(C$15:C138)>=$B$8," ",$HG139) -> 125 | C139: =IF(ISNUMBER(B139),IF(ROUND($B$10,0)=B139,1,IF(B139>ROUND($B$10,1),IF(B139=INT($B$10+SUM($C$14:C138)*$B$9),1,""),"")),"") -> 1 | HG139: 125 | HL139: 125
B140: =IF(SUM(C$15:C139)>=$B$8," ",$HG140) -> 126 | C140: =IF(ISNUMBER(B140),IF(ROUND($B$10,0)=B140,1,IF(B140>ROUND($B$10,1),IF(B140=INT($B$10+SUM($C$14:C139)*$B$9),1,""),"")),"") -> 1 | HG140: 126 | HL140: 126
B141: =IF(SUM(C$15:C140)>=$B$8," ",$HG141) -> 127 | C141: =IF(ISNUMBER(B141),IF(ROUND($B$10,0)=B141,1,IF(B141>ROUND($B$10,1),IF(B141=INT($B$10+SUM($C$14:C140)*$B$9),1,""),"")),"") -> 1 | HG141: =HG140+1 -> 127 | HL141: 127
B142: =IF(SUM(C$15:C141)>=$B$8," ",$HG142) -> 128 | C142: =IF(ISNUMBER(B142),IF(ROUND($B$10,0)=B142,1,IF(B142>ROUND($B$10,1),IF(B142=INT($B$10+SUM($C$14:C141)*$B$9),1,""),"")),"") -> 1 | HG142: 128 | HL142: 128
B143: =IF(SUM(C$15:C142)>=$B$8," ",$HG143) -> 129 | C143: =IF(ISNUMBER(B143),IF(ROUND($B$10,0)=B143,1,IF(B143>ROUND($B$10,1),IF(B143=INT($B$10+SUM($C$14:C142)*$B$9),1,""),"")),"") -> 1 | HG143: 129 | HL143: 129
B144: =IF(SUM(C$15:C143)>=$B$8," ",$HG144) -> 130 | C144: =IF(ISNUMBER(B144),IF(ROUND($B$10,0)=B144,1,IF(B144>ROUND($B$10,1),IF(B144=INT($B$10+SUM($C$14:C143)*$B$9),1,""),"")),"") -> 1 | HG144: 130 | HL144: 130
B145: =IF(SUM(C$15:C144)>=$B$8," ",$HG145) -> 131 | C145: =IF(ISNUMBER(B145),IF(ROUND($B$10,0)=B145,1,IF(B145>ROUND($B$10,1),IF(B145=INT($B$10+SUM($C$14:C144)*$B$9),1,""),"")),"") -> 1 | HG145: 131 | HL145: =HL144+1 -> 131
B146: =IF(SUM(C$15:C145)>=$B$8," ",$HG146) -> 132 | C146: =IF(ISNUMBER(B146),IF(ROUND($B$10,0)=B146,1,IF(B146>ROUND($B$10,1),IF(B146=INT($B$10+SUM($C$14:C145)*$B$9),1,""),"")),"") ->  | HG146: 132 | HL146: 132
B147: =IF(SUM(C$15:C146)>=$B$8," ",$HG147) -> 133 | C147: =IF(ISNUMBER(B147),IF(ROUND($B$10,0)=B147,1,IF(B147>ROUND($B$10,1),IF(B147=INT($B$10+SUM($C$14:C146)*$B$9),1,""),"")),"") -> 1 | HG147: 133 | HL147: 133
B148: =IF(SUM(C$15:C147)>=$B$8," ",$HG148) -> 134 | C148: =IF(ISNUMBER(B148),IF(ROUND($B$10,0)=B148,1,IF(B148>ROUND($B$10,1),IF(B148=INT($B$10+SUM($C$14:C147)*$B$9),1,""),"")),"") -> 1 | HG148: 134 | HL148: 134
B149: =IF(SUM(C$15:C148)>=$B$8," ",$HG149) -> 135 | C149: =IF(ISNUMBER(B149),IF(ROUND($B$10,0)=B149,1,IF(B149>ROUND($B$10,1),IF(B149=INT($B$10+SUM($C$14:C148)*$B$9),1,""),"")),"") -> 1 | HG149: 135 | HL149: 135
B150: =IF(SUM(C$15:C149)>=$B$8," ",$HG150) -> 136 | C150: =IF(ISNUMBER(B150),IF(ROUND($B$10,0)=B150,1,IF(B150>ROUND($B$10,1),IF(B150=INT($B$10+SUM($C$14:C149)*$B$9),1,""),"")),"") -> 1 | HG150: 136 | HL150: 136
B151: =IF(SUM(C$15:C150)>=$B$8," ",$HG151) -> 137 | C151: =IF(ISNUMBER(B151),IF(ROUND($B$10,0)=B151,1,IF(B151>ROUND($B$10,1),IF(B151=INT($B$10+SUM($C$14:C150)*$B$9),1,""),"")),"") -> 1 | HG151: 137 | HL151: 137
B152: =IF(SUM(C$15:C151)>=$B$8," ",$HG152) -> 138 | C152: =IF(ISNUMBER(B152),IF(ROUND($B$10,0)=B152,1,IF(B152>ROUND($B$10,1),IF(B152=INT($B$10+SUM($C$14:C151)*$B$9),1,""),"")),"") -> 1 | HG152: 138 | HL152: 138
B153: =IF(SUM(C$15:C152)>=$B$8," ",$HG153) -> 139 | C153: =IF(ISNUMBER(B153),IF(ROUND($B$10,0)=B153,1,IF(B153>ROUND($B$10,1),IF(B153=INT($B$10+SUM($C$14:C152)*$B$9),1,""),"")),"") -> 1 | HG153: 139 | HL153: 139
B154: =IF(SUM(C$15:C153)>=$B$8," ",$HG154) -> 140 | C154: =IF(ISNUMBER(B154),IF(ROUND($B$10,0)=B154,1,IF(B154>ROUND($B$10,1),IF(B154=INT($B$10+SUM($C$14:C153)*$B$9),1,""),"")),"") -> 1 | HG154: 140 | HL154: 140
B155: =IF(SUM(C$15:C154)>=$B$8," ",$HG155) -> 141 | C155: =IF(ISNUMBER(B155),IF(ROUND($B$10,0)=B155,1,IF(B155>ROUND($B$10,1),IF(B155=INT($B$10+SUM($C$14:C154)*$B$9),1,""),"")),"") -> 1 | HG155: 141 | HL155: 141
B156: =IF(SUM(C$15:C155)>=$B$8," ",$HG156) -> 142 | C156: =IF(ISNUMBER(B156),IF(ROUND($B$10,0)=B156,1,IF(B156>ROUND($B$10,1),IF(B156=INT($B$10+SUM($C$14:C155)*$B$9),1,""),"")),"") ->  | HG156: 142 | HL156: 142
B157: =IF(SUM(C$15:C156)>=$B$8," ",$HG157) -> 143 | C157: =IF(ISNUMBER(B157),IF(ROUND($B$10,0)=B157,1,IF(B157>ROUND($B$10,1),IF(B157=INT($B$10+SUM($C$14:C156)*$B$9),1,""),"")),"") -> 1 | HG157: 143 | HL157: 143
B158: =IF(SUM(C$15:C157)>=$B$8," ",$HG158) -> 144 | C158: =IF(ISNUMBER(B158),IF(ROUND($B$10,0)=B158,1,IF(B158>ROUND($B$10,1),IF(B158=INT($B$10+SUM($C$14:C157)*$B$9),1,""),"")),"") -> 1 | HG158: 144 | HL158: 144
B159: =IF(SUM(C$15:C158)>=$B$8," ",$HG159) -> 145 | C159: =IF(ISNUMBER(B159),IF(ROUND($B$10,0)=B159,1,IF(B159>ROUND($B$10,1),IF(B159=INT($B$10+SUM($C$14:C158)*$B$9),1,""),"")),"") -> 1 | HG159: 145 | HL159: 145
B160: =IF(SUM(C$15:C159)>=$B$8," ",$HG160) -> 146 | C160: =IF(ISNUMBER(B160),IF(ROUND($B$10,0)=B160,1,IF(B160>ROUND($B$10,1),IF(B160=INT($B$10+SUM($C$14:C159)*$B$9),1,""),"")),"") -> 1 | HG160: 146 | HL160: 146
B161: =IF(SUM(C$15:C160)>=$B$8," ",$HG161) -> 147 | C161: =IF(ISNUMBER(B161),IF(ROUND($B$10,0)=B161,1,IF(B161>ROUND($B$10,1),IF(B161=INT($B$10+SUM($C$14:C160)*$B$9),1,""),"")),"") -> 1 | HG161: 147 | HL161: 147
B162: =IF(SUM(C$15:C161)>=$B$8," ",$HG162) -> 148 | C162: =IF(ISNUMBER(B162),IF(ROUND($B$10,0)=B162,1,IF(B162>ROUND($B$10,1),IF(B162=INT($B$10+SUM($C$14:C161)*$B$9),1,""),"")),"") -> 1 | HG162: 148 | HL162: 148
B163: =IF(SUM(C$15:C162)>=$B$8," ",$HG163) -> 149 | C163: =IF(ISNUMBER(B163),IF(ROUND($B$10,0)=B163,1,IF(B163>ROUND($B$10,1),IF(B163=INT($B$10+SUM($C$14:C162)*$B$9),1,""),"")),"") -> 1 | HG163: 149 | HL163: 149
B164: =IF(SUM(C$15:C163)>=$B$8," ",$HG164) -> 150 | C164: =IF(ISNUMBER(B164),IF(ROUND($B$10,0)=B164,1,IF(B164>ROUND($B$10,1),IF(B164=INT($B$10+SUM($C$14:C163)*$B$9),1,""),"")),"") -> 1 | HG164: 150 | HL164: 150
B165: =IF(SUM(C$15:C164)>=$B$8," ",$HG165) -> 151 | C165: =IF(ISNUMBER(B165),IF(ROUND($B$10,0)=B165,1,IF(B165>ROUND($B$10,1),IF(B165=INT($B$10+SUM($C$14:C164)*$B$9),1,""),"")),"") -> 1 | HG165: 151 | HL165: 151
B166: =IF(SUM(C$15:C165)>=$B$8," ",$HG166) -> 152 | C166: =IF(ISNUMBER(B166),IF(ROUND($B$10,0)=B166,1,IF(B166>ROUND($B$10,1),IF(B166=INT($B$10+SUM($C$14:C165)*$B$9),1,""),"")),"") ->  | HG166: 152 | HL166: 152
B167: =IF(SUM(C$15:C166)>=$B$8," ",$HG167) -> 153 | C167: =IF(ISNUMBER(B167),IF(ROUND($B$10,0)=B167,1,IF(B167>ROUND($B$10,1),IF(B167=INT($B$10+SUM($C$14:C166)*$B$9),1,""),"")),"") -> 1 | HG167: 153 | HL167: 153
B168: =IF(SUM(C$15:C167)>=$B$8," ",$HG168) -> 154 | C168: =IF(ISNUMBER(B168),IF(ROUND($B$10,0)=B168,1,IF(B168>ROUND($B$10,1),IF(B168=INT($B$10+SUM($C$14:C167)*$B$9),1,""),"")),"") -> 1 | HG168: 154 | HL168: 154
B169: =IF(SUM(C$15:C168)>=$B$8," ",$HG169) -> 155 | C169: =IF(ISNUMBER(B169),IF(ROUND($B$10,0)=B169,1,IF(B169>ROUND($B$10,1),IF(B169=INT($B$10+SUM($C$14:C168)*$B$9),1,""),"")),"") -> 1 | HG169: 155 | HL169: 155
B170: =IF(SUM(C$15:C169)>=$B$8," ",$HG170) -> 156 | C170: =IF(ISNUMBER(B170),IF(ROUND($B$10,0)=B170,1,IF(B170>ROUND($B$10,1),IF(B170=INT($B$10+SUM($C$14:C169)*$B$9),1,""),"")),"") -> 1 | HG170: 156 | HL170: 156
B171: =IF(SUM(C$15:C170)>=$B$8," ",$HG171) -> 157 | C171: =IF(ISNUMBER(B171),IF(ROUND($B$10,0)=B171,1,IF(B171>ROUND($B$10,1),IF(B171=INT($B$10+SUM($C$14:C170)*$B$9),1,""),"")),"") -> 1 | HG171: 157 | HL171: 157
B172: =IF(SUM(C$15:C171)>=$B$8," ",$HG172) -> 158 | C172: =IF(ISNUMBER(B172),IF(ROUND($B$10,0)=B172,1,IF(B172>ROUND($B$10,1),IF(B172=INT($B$10+SUM($C$14:C171)*$B$9),1,""),"")),"") -> 1 | HG172: 158 | HL172: 158
B173: =IF(SUM(C$15:C172)>=$B$8," ",$HG173) -> 159 | C173: =IF(ISNUMBER(B173),IF(ROUND($B$10,0)=B173,1,IF(B173>ROUND($B$10,1),IF(B173=INT($B$10+SUM($C$14:C172)*$B$9),1,""),"")),"") -> 1 | HG173: 159 | HL173: 159
B174: =IF(SUM(C$15:C173)>=$B$8," ",$HG174) -> 160 | C174: =IF(ISNUMBER(B174),IF(ROUND($B$10,0)=B174,1,IF(B174>ROUND($B$10,1),IF(B174=INT($B$10+SUM($C$14:C173)*$B$9),1,""),"")),"") -> 1 | HG174: 160 | HL174: 160
B175: =IF(SUM(C$15:C174)>=$B$8," ",$HG175) -> 161 | C175: =IF(ISNUMBER(B175),IF(ROUND($B$10,0)=B175,1,IF(B175>ROUND($B$10,1),IF(B175=INT($B$10+SUM($C$14:C174)*$B$9),1,""),"")),"") -> 1 | HG175: 161 | HL175: 161
B176: =IF(SUM(C$15:C175)>=$B$8," ",$HG176) -> 162 | C176: =IF(ISNUMBER(B176),IF(ROUND($B$10,0)=B176,1,IF(B176>ROUND($B$10,1),IF(B176=INT($B$10+SUM($C$14:C175)*$B$9),1,""),"")),"") ->  | HG176: 162 | HL176: 162
B177: =IF(SUM(C$15:C176)>=$B$8," ",$HG177) -> 163 | C177: =IF(ISNUMBER(B177),IF(ROUND($B$10,0)=B177,1,IF(B177>ROUND($B$10,1),IF(B177=INT($B$10+SUM($C$14:C176)*$B$9),1,""),"")),"") -> 1 | HG177: 163 | HL177: 163
B178: =IF(SUM(C$15:C177)>=$B$8," ",$HG178) -> 164 | C178: =IF(ISNUMBER(B178),IF(ROUND($B$10,0)=B178,1,IF(B178>ROUND($B$10,1),IF(B178=INT($B$10+SUM($C$14:C177)*$B$9),1,""),"")),"") -> 1 | HG178: 164 | HL178: 164
B179: =IF(SUM(C$15:C178)>=$B$8," ",$HG179) -> 165 | C179: =IF(ISNUMBER(B179),IF(ROUND($B$10,0)=B179,1,IF(B179>ROUND($B$10,1),IF(B179=INT($B$10+SUM($C$14:C178)*$B$9),1,""),"")),"") -> 1 | HG179: 165 | HL179: 165
B180: =IF(SUM(C$15:C179)>=$B$8," ",$HG180) -> 166 | C180: =IF(ISNUMBER(B180),IF(ROUND($B$10,0)=B180,1,IF(B180>ROUND($B$10,1),IF(B180=INT($B$10+SUM($C$14:C179)*$B$9),1,""),"")),"") -> 1 | HG180: 166 | HL180: 166
B181: =IF(SUM(C$15:C180)>=$B$8," ",$HG181) -> 167 | C181: =IF(ISNUMBER(B181),IF(ROUND($B$10,0)=B181,1,IF(B181>ROUND($B$10,1),IF(B181=INT($B$10+SUM($C$14:C180)*$B$9),1,""),"")),"") -> 1 | HG181: 167 | HL181: 167
B182: =IF(SUM(C$15:C181)>=$B$8," ",$HG182) -> 168 | C182: =IF(ISNUMBER(B182),IF(ROUND($B$10,0)=B182,1,IF(B182>ROUND($B$10,1),IF(B182=INT($B$10+SUM($C$14:C181)*$B$9),1,""),"")),"") -> 1 | HG182: 168 | HL182: 168
B183: =IF(SUM(C$15:C182)>=$B$8," ",$HG183) -> 169 | C183: =IF(ISNUMBER(B183),IF(ROUND($B$10,0)=B183,1,IF(B183>ROUND($B$10,1),IF(B183=INT($B$10+SUM($C$14:C182)*$B$9),1,""),"")),"") -> 1 | HG183: 169 | HL183: 169
B184: =IF(SUM(C$15:C183)>=$B$8," ",$HG184) -> 170 | C184: =IF(ISNUMBER(B184),IF(ROUND($B$10,0)=B184,1,IF(B184>ROUND($B$10,1),IF(B184=INT($B$10+SUM($C$14:C183)*$B$9),1,""),"")),"") -> 1 | HG184: 170 | HL184: 170
B185: =IF(SUM(C$15:C184)>=$B$8," ",$HG185) -> 171 | C185: =IF(ISNUMBER(B185),IF(ROUND($B$10,0)=B185,1,IF(B185>ROUND($B$10,1),IF(B185=INT($B$10+SUM($C$14:C184)*$B$9),1,""),"")),"") -> 1 | HG185: 171 | HL185: 171
B186: =IF(SUM(C$15:C185)>=$B$8," ",$HG186) -> 172 | C186: =IF(ISNUMBER(B186),IF(ROUND($B$10,0)=B186,1,IF(B186>ROUND($B$10,1),IF(B186=INT($B$10+SUM($C$14:C185)*$B$9),1,""),"")),"") ->  | HG186: 172 | HL186: 172
B187: =IF(SUM(C$15:C186)>=$B$8," ",$HG187) -> 173 | C187: =IF(ISNUMBER(B187),IF(ROUND($B$10,0)=B187,1,IF(B187>ROUND($B$10,1),IF(B187=INT($B$10+SUM($C$14:C186)*$B$9),1,""),"")),"") -> 1 | HG187: 173 | HL187: 173
B188: =IF(SUM(C$15:C187)>=$B$8," ",$HG188) -> 174 | C188: =IF(ISNUMBER(B188),IF(ROUND($B$10,0)=B188,1,IF(B188>ROUND($B$10,1),IF(B188=INT($B$10+SUM($C$14:C187)*$B$9),1,""),"")),"") -> 1 | HG188: 174 | HL188: 174
B189: =IF(SUM(C$15:C188)>=$B$8," ",$HG189) -> 175 | C189: =IF(ISNUMBER(B189),IF(ROUND($B$10,0)=B189,1,IF(B189>ROUND($B$10,1),IF(B189=INT($B$10+SUM($C$14:C188)*$B$9),1,""),"")),"") -> 1 | HG189: 175 | HL189: 175
B190: =IF(SUM(C$15:C189)>=$B$8," ",$HG190) -> 176 | C190: =IF(ISNUMBER(B190),IF(ROUND($B$10,0)=B190,1,IF(B190>ROUND($B$10,1),IF(B190=INT($B$10+SUM($C$14:C189)*$B$9),1,""),"")),"") -> 1 | HG190: 176 | HL190: 176
B191: =IF(SUM(C$15:C190)>=$B$8," ",$HG191) -> 177 | C191: =IF(ISNUMBER(B191),IF(ROUND($B$10,0)=B191,1,IF(B191>ROUND($B$10,1),IF(B191=INT($B$10+SUM($C$14:C190)*$B$9),1,""),"")),"") -> 1 | HG191: 177 | HL191: 177
B192: =IF(SUM(C$15:C191)>=$B$8," ",$HG192) -> 178 | C192: =IF(ISNUMBER(B192),IF(ROUND($B$10,0)=B192,1,IF(B192>ROUND($B$10,1),IF(B192=INT($B$10+SUM($C$14:C191)*$B$9),1,""),"")),"") -> 1 | HG192: 178 | HL192: 178
B193: =IF(SUM(C$15:C192)>=$B$8," ",$HG193) -> 179 | C193: =IF(ISNUMBER(B193),IF(ROUND($B$10,0)=B193,1,IF(B193>ROUND($B$10,1),IF(B193=INT($B$10+SUM($C$14:C192)*$B$9),1,""),"")),"") -> 1 | HG193: 179 | HL193: 179
B194: =IF(SUM(C$15:C193)>=$B$8," ",$HG194) -> 180 | C194: =IF(ISNUMBER(B194),IF(ROUND($B$10,0)=B194,1,IF(B194>ROUND($B$10,1),IF(B194=INT($B$10+SUM($C$14:C193)*$B$9),1,""),"")),"") -> 1 | HG194: 180 | HL194: 180
B195: =IF(SUM(C$15:C194)>=$B$8," ",$HG195) -> 181 | C195: =IF(ISNUMBER(B195),IF(ROUND($B$10,0)=B195,1,IF(B195>ROUND($B$10,1),IF(B195=INT($B$10+SUM($C$14:C194)*$B$9),1,""),"")),"") -> 1 | HG195: 181 | HL195: 181
B196: =IF(SUM(C$15:C195)>=$B$8," ",$HG196) -> 182 | C196: =IF(ISNUMBER(B196),IF(ROUND($B$10,0)=B196,1,IF(B196>ROUND($B$10,1),IF(B196=INT($B$10+SUM($C$14:C195)*$B$9),1,""),"")),"") ->  | HG196: 182 | HL196: 182
B197: =IF(SUM(C$15:C196)>=$B$8," ",$HG197) -> 183 | C197: =IF(ISNUMBER(B197),IF(ROUND($B$10,0)=B197,1,IF(B197>ROUND($B$10,1),IF(B197=INT($B$10+SUM($C$14:C196)*$B$9),1,""),"")),"") -> 1 | HG197: 183 | HL197: 183
B198: =IF(SUM(C$15:C197)>=$B$8," ",$HG198) -> 184 | C198: =IF(ISNUMBER(B198),IF(ROUND($B$10,0)=B198,1,IF(B198>ROUND($B$10,1),IF(B198=INT($B$10+SUM($C$14:C197)*$B$9),1,""),"")),"") -> 1 | HG198: 184 | HL198: 184
B199: =IF(SUM(C$15:C198)>=$B$8," ",$HG199) -> 185 | C199: =IF(ISNUMBER(B199),IF(ROUND($B$10,0)=B199,1,IF(B199>ROUND($B$10,1),IF(B199=INT($B$10+SUM($C$14:C198)*$B$9),1,""),"")),"") -> 1 | HG199: 185 | HL199: 185
B200: =IF(SUM(C$15:C199)>=$B$8," ",$HG200) -> 186 | C200: =IF(ISNUMBER(B200),IF(ROUND($B$10,0)=B200,1,IF(B200>ROUND($B$10,1),IF(B200=INT($B$10+SUM($C$14:C199)*$B$9),1,""),"")),"") -> 1 | HG200: 186 | HL200: 186
B201: =IF(SUM(C$15:C200)>=$B$8," ",$HG201) -> 187 | C201: =IF(ISNUMBER(B201),IF(ROUND($B$10,0)=B201,1,IF(B201>ROUND($B$10,1),IF(B201=INT($B$10+SUM($C$14:C200)*$B$9),1,""),"")),"") -> 1 | HG201: 187 | HL201: 187
B202: =IF(SUM(C$15:C201)>=$B$8," ",$HG202) -> 188 | C202: =IF(ISNUMBER(B202),IF(ROUND($B$10,0)=B202,1,IF(B202>ROUND($B$10,1),IF(B202=INT($B$10+SUM($C$14:C201)*$B$9),1,""),"")),"") -> 1 | HG202: 188 | HL202: 188
B203: =IF(SUM(C$15:C202)>=$B$8," ",$HG203) -> 189 | C203: =IF(ISNUMBER(B203),IF(ROUND($B$10,0)=B203,1,IF(B203>ROUND($B$10,1),IF(B203=INT($B$10+SUM($C$14:C202)*$B$9),1,""),"")),"") -> 1 | HG203: 189 | HL203: 189
B204: =IF(SUM(C$15:C203)>=$B$8," ",$HG204) -> 190 | C204: =IF(ISNUMBER(B204),IF(ROUND($B$10,0)=B204,1,IF(B204>ROUND($B$10,1),IF(B204=INT($B$10+SUM($C$14:C203)*$B$9),1,""),"")),"") -> 1 | HG204: 190 | HL204: 190
... 358 more rows
